{"text_format":"1","workbook":"xlsx","n_sheets":1,"sheets":["Contactos"],"not_rendered":{"charts":0,"images":3,"macros":1,"external_links":1,"defined_names":3,"comments":0,"pivot_tables":0},"unopened":[],"bounds":{"document_bytes":16777216,"sheet_cells":100000,"rows_first":2000,"rows_last":500,"rows_between":2000,"halvings":0,"cell_chars":16384,"cell_head_chars":4096},"cells_cut":0,"cells_raw":0,"read":"whole","date_system":"1900"}

{"sheet":"Contactos","index":0,"n_rows":1652,"n_cols":4,"rows_kept":1652,"cut":false,"hidden":false,"merged":[]}
[null,"BUSCADOR DE"]
[null,"PRODUCTO"]
[null,"*"]
[null,"Para buscar ingresar 1 palabra nombre del carro"]
[null,"empezar con un asterisco \"*\"     Ejemplo:  *Aveo"]
[]
[null,"LISTA DE PRECIOS MIRSA 2025",{"$f":"NOW()","v":"2025-08-15T12:38:14.360"}]
[]
["CODIGO","PRODUCTO","CLAVE","NUMERO"]
["1CH","CALAVERA CHEV.PU y VAN  65-78","CHEVROLET",282]
["2CH","M.CALAVERA CHEV PU. y VAN 65-78","CHEVROLET",120]
["3CH","1/4 LATERAL CHEV PU Y VAN 65-78","CHEVROLET",118]
["4CH","BASE CALAVERA CHEV PU. y VAN 65-78","CHEVROLET",228]
["5IPCH","CALAVERA CHEVY  C3 5 PTAS 09-12 IP DP","CHEVROLET",1700]
["6CH","M. 1/4 FRONT. CHEV VAN 62-72 (MK)","CHEVROLET",168]
["7ECH","CALAVERA  CHEVY C-3 4PTS 08-10","CHEVROLET",1104]
["7IPCH","CALAVERA  CHEVY C-3, 4PTS  08-10 IP DP","CHEVROLET",1700]
["8CH","1/4 LAT. CHEV PU. VERT  73-78","CHEVROLET",62]
["9CH","M. 1/4 FRONT. CHEV PU.  73-79","CHEVROLET",94]
["10CH","1/4 FRONT. CHEV PU. Y VAN  62-72  (MK)","CHEVROLET",286]
["11CH","M.CALAVERA SUBURBAN-SIERRA-CHEYENNE-CUSTOM 78-91  (MK)","CHEVROLET",170]
["11TCH","M.CALAVERA SUBURBAN-SIERRA-CHEYENNE-CUSTOM 78-91","CHEVROLET",280]
["12CH","1/4 FRONTAL CHEV PU. CHEYENNE 1980-86 (MK)","CHEVROLET",180]
["13CH","CALAVERA  SILVERADO 03-06-CUSTOM 03-07","CHEVROLET",1668]
["14BCH","1/4 LAT CHEYENNE-SUBURBAN-SIERRA BISEL CROM  81-92","CHEVROLET",190]
["14SCH","1/4 LAT CHEYENNE-SUBURBAN-SIERRA  81-91","CHEVROLET",124]
["15BCH","BASE.CALAVERA SUBURBAN-SIERRA-CHEYENNE-CUSTOM 78-91 ","CHEVROLET",158]
["15PCH","CALAVERA SUBURBAN  78-91","CHEVROLET",362]
["16TCH","1/4 FRONT.CHEV CUSTOM 85-88 PARRILLA","CHEVROLET",534]
["17CH","PARRILLA CHEVY (SWING Y MONZA ) 2Y4 PTAS 94-01","CHEVROLET",416]
["18CH","CALAVERA BLAZER Y S-10 CROM 82-94 T-SPORT","CHEVROLET",1000]
["19CH","CALAVERA BLAZER Y S-10 NEGRA 82-94 T-SPORT","CHEVROLET",928]
["20CH","1/4 PUNTA CONCOURS 77-78","CHEVROLET",478]
["21CH","M. CASETA CHEV.  81-84","CHEVROLET",42]
["22IPCH","CALAVERA CHEV AVEO 12-16 Y PONTIAC  G3 06-11 IP OPT","CHEVROLET",2200]
["23CH","1/4 FRONT. CHEYENNE-SUBURBAN-SIERRA 89-91","CHEVROLET",582]
["24CH","ZEPPELIN CASETA CHEVROLET  81-84","CHEVROLET",126]
["25IACH","CALAVERA  CHEYENNE-CUSTOM-SIERRA 92-98-SUBURBAN 92-99","CHEVROLET",688]
["26CH","1/4 F. CUSTOM 92-98 HEAVY DUTY 98-06","CHEVROLET",360]
["27CH","1/4 FRONT. CHEV PU. CUSTOM 89-91  (MK)","CHEVROLET",252]
["28CH","1/4 REFLEJ CHEV CHEYENNE 88-93 SUPERIOR","CHEVROLET",74]
["29CH","1/4 PUNTA CHEV CHEYENNE 88-93 INFERIOR","CHEVROLET",74]
["30CH","1/4 FRONT. DENALI-GMC-SIERRA-SUBURBAN-YUKON 92-99","CHEVROLET",336]
["31CCH","CALAVERA BLAZER Y S-10 CROM 82-94","CHEVROLET",590]
["31CTOCH","CALAVERA  BLAZER Y S-10 CROM 82-94 TO","CHEVROLET",720]
["31ECH","CALAVERA  BLAZER Y S-10 NEGRA 82-94  ECO","CHEVROLET",422]
["31TOCH","CALAVERA  BLAZER Y S-10 NEGRA 82-94 TO","CHEVROLET",604]
["32CH","1/4 PUNTA CUSTOM 92-98/HEAVY DUTY 98-06","CHEVROLET",144]
["33CH","1/4 REFL  CHEV CHEYENNE-SIERRA 96-98-SUBURBAN 96-99  SUPERIOR","CHEVROLET",168]
["34CH","1/4 PUNTA CHEV CHEYENNE-SIERRA 96-98-SUBURBAN 96-99 INFEROR","CHEVROLET",168]
["35CH","M. CASETA CHEV PU. 92-94","CHEVROLET",74]
["36PCH","CASETA CHEV PU. 92-94 COMPLETO","CHEVROLET",182]
["37CH","M. CHEV MALIBU 78-83 SIN COMP","CHEVROLET",526]
["38CH","COMPLEMENTO M.CHEV MALIBU 78-83","CHEVROLET",264]
["39CH","1/4 PUNTA CHEV MALIBU 78-79","CHEVROLET",642]
["40SCH","1/4 REFL CHEYENNE/SIERRA 94/95 SUBURBAN 94-95 SUPERIOR","CHEVROLET",228]
["41SCH","1/4 PUNTA CHEYENNE/SIERRA 94-95 SUBURBAN INFERIOR","CHEVROLET",228]
["42CH","CALAVERA CHEYENNE-CUSTOM-SIERRA 92-98 SUBURBAN 92-99 SPORT","CHEVROLET",1038]
["43CH","CALAVERA CHEYENNE-CUSTOM-SIERRA 92-98-SUBURBAN 92-99 SPORT TRANSP","CHEVROLET",998]
["44CH","PARRILLA CHEVY (SWING Y MONZA ) 2Y4 PTAS 94-01 CROMADA","CHEVROLET",540]
["45CH","C. CHEV/CUST/ SIERRA 92-98 / SUB 92-99 FN","CHEVROLET",1188]
["46CH","1/4 PUNTA CHEV. CITATION SIN BISEL 80-85","CHEVROLET",648]
["47CH","1/4 FRONTAL DENALI-GMC-SIERRA-SUBURBAN-YUKON 92-99 SPORT","CHEVROLET",452]
["48IPCH","CALAVERA  ASTRA 1.8 LTS  00-03 IP OPT","CHEVROLET",1897]
["49CH","1/4 LATERAL PINTIAC SUNFIRE 00-06 ROJO Y AMB","CHEVROLET",316]
["50CH","1/4 PUNTA CHEV CAPRICE 81-85","CHEVROLET",126]
["51CH","M.CALAVERA  CAVALIER 93-94  4PTS","CHEVROLET",2940]
["52IPCH","CALAVERA CHEV OPTRA 06-10 IP OPT","CHEVROLET",1995]
["53CH","1/4 PUNTA CHEV CAVALIER 89-90","CHEVROLET",328]
["54CH","1/4 PUNTA CHEV CAVALIER 91-92","CHEVROLET",282]
["55CH","1/4 FRONTAL CHEV MONTECARLO 81-82 (MK)","CHEVROLET",386]
["56CH","1/4 LAT. CHEV CAVALIER 93-94","CHEVROLET",358]
["57CH","1/4 DEF CENTURY 85-88","CHEVROLET",186]
["58CH","1/4 PUNTA CHEV CENTURY 91-96","CHEVROLET",794]
["58IPCH","1/4 PUNTA CHEV CENTURY 91-96  IP DP","CHEVROLET",1000]
["59CH","1/4 LATERAL CAVALIER 95-99","CHEVROLET",388]
["60CH","REJILLA VENTILACION CHEVY C2 C3 CORSA Y TORNADO","CHEVROLET",535.5]
["61CH","1/4 PUNTA CHEV CENTURY 89-90 AMB","CHEVROLET",648]
["62TCH","M.CALAVERA CORVETTE C4  84-96","CHEVROLET",96]
["63CH","1/4 PUNTA CHEV CENTURY 88","CHEVROLET",414]
["64CH","JGO REJILLA CALAVERA CHEY-CUSTOM-SIERRA 92-98-SUBURBAN 92-99 (NEGRA)","CHEVROLET",310]
["65IPCH","CALAVERA MATIZ 06-11 IP DP","CHEVROLET",1400]
["66CH","M.CALAVERA CHEV CUTLASS-OLDSMOBILE CIERA 91-96","CHEVROLET",736]
["67CH","1/4 PUNTA CHEV CUTLASS-OLDSMOBILE CIERA 91-97","CHEVROLET",248]
["68CH","1/4 FRONTAL PUNTA CH MALIBU 80-82","CHEVROLET",252]
["69CH","BISEL CHEV CUTLASS-OLDSMOBILE CIERA 91-96","CHEVROLET",594]
["70CH","1/4 FRONT. CHEV CUTLASS-OLDSMOBILE CIERA 91-96","CHEVROLET",294]
["71CH","JGO REJILLA CALAVERA CHEY-CUSTOM-SIERRA 92-98-SUBURBAN 92-99 (CROM)","CHEVROLET",534]
["72IPCH","CALAVERA  CHEVROLET VENTURE 97-04 IP DP","CHEVROLET",1900]
["73IPCH","1/4 PUNTA CHEVROLET VENTURE 97-04 IP DP","CHEVROLET",1900]
["74CH","CALAVERA  CHEVROLET PU. TORNADO 04-11","CHEVROLET",1150]
["75IPCH","1/4 PUNTA CV SILHOUETTE/LUMIN APV 90/93 IP DP","CHEVROLET",1100]
["76CH","1/4 LAT. MALIBU 97-03","CHEVROLET",320]
["77CH","BISEL CHEV CUSTOM 85-88 (MK)","CHEVROLET",230]
["78CH","BISEL CHEV CHEYENE-SUBURBAN 85-88","CHEVROLET",294]
["79CH","1/4 LAT. CAVALIER Z-24 89-93","CHEVROLET",334]
["80CH","1/4 PUNTA CHEV CHEYENNE-SUBURBAN 94-95 SUPERIOR SPORT","CHEVROLET",226]
["81CH","1/4 PUNTA CV CHEYENNE-SUBURBAN 94-95 INFERIOR SPORT","CHEVROLET",226]
["82CH","LUZ DE PLACA POP-JOY MONZA SWING P-UP CHEVY 94-03","CHEVROLET",226]
["83CH","1/4 LAT. CAVALIER  90-91","CHEVROLET",310]
["84CH","1/4 FRONT. CHEV PU.  73-79","CHEVROLET",180]
["85IPCH","CALAVERA ASTRA HATCHBAK 4PTAS 00-03 IP OPT","CHEVROLET",1800]
["86CH","1/4 LAT. CUTLASS DELANT Y TRAS 87-89","CHEVROLET",340]
["87CH","1/4 LAT. VERTICAL BLAZER 83-94","CHEVROLET",140]
["88CH","1/4 PUNTA CHEV S-10-BLAZER 95-97-SONOMA 95-96","CHEVROLET",242]
["89CH","1/4 PUNTA CHEV CHEYENNE SUBURBAN 94-95 INFERIOR","CHEVROLET",168]
["90CH","1/4 PUNTA CHEV CHEYENNE-SUBURBAN 94-95  SUPERIOR","CHEVROLET",168]
["91CH","1/4 LAT. CHEV ASTRA 00-06-ZAFIRA 02-05","CHEVROLET",318]
["92CH","1/4 LAT. CUTLASS 90-96","CHEVROLET",335]
["93IPCH","CALAV. CHEV CORSA ROJO/CRIST 2003-08 IP OPT","CHEVROLET",1800]
["94CH","M.CALAVERA CHEV CUTLASS-OLDSMOBILE CIERA 89-90","CHEVROLET",998]
["95IPCH","CALAVERA CHEV CORSA ROJ- ROSA  03-08 IP OPT","CHEVROLET",1800]
["96CH","M.CALAVERA CAVALIER 4 PTAS 93","CHEVROLET",1386]
["97CH","MICA CHEVROLET VAN 80/88","CHEVROLET",542]
["98CH","MICA CHEVROLET VAN 89-92","CHEVROLET",602]
["99CH","REJILLA FASCIA CHEVY C3 09-13 S-HOYO P-FARO","CHEVROLET",414]
["100CH","1/4 FASCIA CAVALIER 95-99 ","CHEVROLET",577]
["101CH","LUZ PLACA TRASERA CHEVY C-2 CHEVY C-3 04-11","CHEVROLET",294]
["102CH","STOP DE CABINA PICK-UP CHEV CHEYENNE-GMC PICKUP 92-98","CHEVROLET",1576]
["103CH","CALAVERA  CHEVY 94-00 3 PTS (MK)","CHEVROLET",604]
["104CH","CALAVERA  CHEVY 4 PTS 94-99","CHEVROLET",664]
["104MCH","M.CALAVERA  CHEV CHEVY 94-02 5 PTS","CHEVROLET",368]
["105CH","CALAVERA  CHEVY 94-00 3 PTS SPORT (MK)","CHEVROLET",840]
["105CCH","CALAVERA  CHEVY 94-00 3 PTS SPORT CROM (MK)","CHEVROLET",872]
["106CH","CALAV CHEV CHEVY-MONZA 97-00","CHEVROLET",680]
["107CH","CALAVERA  EXTERIOR CHEV CAVALIER 95-99","CHEVROLET",804]
["108CH","CALAVERA  CHEV S-10-SONOMA 95-03","CHEVROLET",694]
["108SCH","CALAVERA CHEV S-10-SONOMA 95-03 SPORT","CHEVROLET",978]
["109CH","CALAVERA  CHEVY 04-08  C2 5 PTAS S-CAJUELA","CHEVROLET",974]
["110CH","CALAVERA  CHEVY 3 PTS ABOMBADA 2001-2003","CHEVROLET",692]
["111CH","CALAVERA  CHEV CAVALIER 90-94 2P","CHEVROLET",772]
["112CH","M.CALAVERA CENTRAL CAVALIER 90-94 2P","CHEVROLET",722]
["113IPCH","CALAVERA CHEVY 09-12  C3 3 PTAS IP DP","CHEVROLET",1600]
["114CH","M.CALAVERA CHEV CUTLASS-OLDSMOBILE CIERA 86-88","CHEVROLET",1184]
["115CH","LUZ INTERIOR CHEV CITATION","CHEVROLET",160]
["116CH","LUZ  INTERIOR CHEYENE 90-98","CHEVROLET",140]
["117CH","LUZ INTERIOR SUBURBAN  90","CHEVROLET",140]
["118CH","CASETA DE CHEVROLET 92-98","CHEVROLET",100]
["119IPCH","CALAVERA  CHEV LUV 97-01 BIC IP DP","CHEVROLET",1249]
["120IPCH","CALAVERA CHEV LUV 02-05 ROJO-CRIST IP DP","CHEVROLET",1249]
["121ECH","1/4 FRONT. CHEV LUV 98-03","CHEVROLET",474]
["121IPCH","1/4 FRONT. CHEV LUV 98-03 IP DP","CHEVROLET",501]
["122CH","M. 1/4 FRONT. CHEV LUV 96-99","CHEVROLET",178]
["123ECH","1/4 PUNTA CHEV LUV  97-03","CHEVROLET",462]
["123IPCH","1/4 PUNTA LUV SALP 97-03 IP DP","CHEVROLET",701]
["124CH","1/4 CHEV FRONT BLAZER Y S-10 82-94","CHEVROLET",224]
["125CH","1/4 PUNTA CV S-10-BLAZER 95-97-SONOMA 95-96 SPORT","CHEVROLET",328]
["126CH","CALAVERA CV CHEVY 04-08 C2 3PTAS","CHEVROLET",974]
["127CH","1/4 LAT. DE CAVALIER  90","CHEVROLET",304]
["128CH","REFL FASCIA TRASERA CHEVY C-3  09-12","CHEVROLET",284]
["129CH","1/4 LAT. VERTICAL BLAZER 83-94 SPORT","CHEVROLET",190]
["130IPCH","CALAVERA  MATIZ . 04-05 IP DP","CHEVROLET",1350]
["131CH","CALV STOP S-10 CABINA SENCILLA 95-04 LED","CHEVROLET",1024]
["131LCH","1/4 CON LED STOP S-10 CABINA Y MEDIA 95-04","CHEVROLET",1024]
["132IPCH","CALAVERA  CHEV SILVERADO-CUSTOM-SIERRA 99-02 IP DP","CHEVROLET",2500]
["133ECH","CALAVERA CHEVY JOY SWING ABOMBADA 01-03 ECO","CHEVROLET",692]
["134CH","CALAVERA BLAZER CHEV 82-94 SPORT","CHEVROLET",756]
["135CH","1/4 PUNTA CHEV EXPRESS VAN 96-02 CARGA (MK)","CHEVROLET",262]
["136ECH","CALAVERA  CHEVY 01-03 MONZA 5 PTAS ABOMBADA","CHEVROLET",692]
["137CH","1/4 PUNTA CHEV ASTRO-SAFARI 85-94","CHEVROLET",806]
["138CH","CALAVERA CHEVY-MONZA 04-08 C2 4PTAS","CHEVROLET",974]
["139CH","CALAVERA  ASTRO-SAFARI 85-04","CHEVROLET",694]
["140IPCH","CALAVERA CHEV AVEO 18-19 LINEA NUEVA IP OPT","CHEVROLET",2020]
["141CH","STOP DE CABINA PICK-UP CHEV SILVERADO 07-14 SIERRA 07-14","CHEVROLET",1624]
["142CH","CALV.  CV CHEYENNE/SILVERADO/CUSTOM 07-13","CHEVROLET",2278]
["143CH","CALV. CV CHEYENNE/SILVERADO/CUSTOM 07-13 PINTADA","CHEVROLET",2278]
["144CH","MICA CALV. STOP S10 CABINA Y MEDIA 1995-2004","CHEVROLET",694]
["145CH","MICA CALV. STOP S10 CABINA SENCILLA 1995-2004","CHEVROLET",694]
["146CH","CALV. COLORADO GMC CANYON 2004-2012","CHEVROLET",1208]
["147CH","CALV. CH. TORNADO VAN 2021-2025","CHEVROLET",1520]
["148CH","CALV.CHEV. CHEYENNE - SILVERADO 14-18","CHEVROLET",2300]
["1C","M.CALAVERA  VALIANT DUSTER 73-76","CHRYSLER",582]
["1PLC","M.CALAVERA  VALIANT DUSTER 73-76","CHRYSLER",374]
["2C","M.CALAVERA  DG ASPEN SEDAN-COUPE 78-80 (MK)","CHRYSLER",624]
["3C","M.CALAVERA  DG ASPEN SEDAN 78-80 BIC","CHRYSLER",518]
["4C","1/4 PUNTA DG ASPEN -PLYMOUTH VOLARE SEDAN&ST WAGON 78-81","CHRYSLER",100]
["5C","M. ASPEN /PLYM VOLARE STATION WAG 76/80","CHRYSLER",272]
["5PLC","M.CALAV DG ASPEN-PLYMOUTH VOLARE  STATION WAGON 76-80","CHRYSLER",272]
["6C","CALAVERA SPIRIT CROM BIC 91-92","CHRYSLER",2114]
["7C","CALAVERA NEW YORKER 93-95 HUMO","CHRYSLER",2114]
["8CC","BISEL CAMION DG  D-600 90-93 CROM","CHRYSLER",870]
["9C","M.CALAVERA  DG DART-MAGNUM 80-81 DIPLOMAT 80-86","CHRYSLER",736]
["9PLC","M.CALAVERA  DG DART-MAGNUM 80-81 DIPLOMAT 80-86 PLAST","CHRYSLER",378]
["10GC","BISEL CAMION DG D-600 90-93 PINTADO","CHRYSLER",736]
["11C","LUZ DE CORTESIA  DG VALIANT, DART 67-81","CHRYSLER",390]
["12C","1/4 LAT. DG-CHRYSLER PICK UPS 72-93","CHRYSLER",70]
["13C","M.CALAVERA  DG PU. 72-80","CHRYSLER",262]
["13PLC","M.CALAVERA  DG PU. 72-80 ESTIRENO","CHRYSLER",116]
["14C","1/4 DG PU. PARRILLA 76-78  (MK)","CHRYSLER",310]
["15C","1/4 LAT. CHRYSLER PU. COMP 72-79","CHRYSLER",115]
["16C","M. 1/4 FRONT.  DG PU. 72-80","CHRYSLER",170]
["16PC","1/4 FRONT.  DG PU. 72-80","CHRYSLER",285]
["17C","M.CALAVERA DG DART  EXTERIOR 67-73  (MK)","CHRYSLER",204]
["18C","M.CALAVERA VALIANT 74-76 -DART 74-76 EXT","CHRYSLER",152]
["19C","M.CALAVERA  VALIANT 74-76 -DART 74-76 INT","CHRYSLER",152]
["20C","M.CALAVERA  DG DART INT 67-73  (MK)","CHRYSLER",204]
["21C","1/4 TRASERO PT CRUISER 01-05  (MK)","CHRYSLER",556]
["22C","CALV  CR VOYAGER-CARAVAN 96-00 DURANGO 97-03 C/ARNES (MK)","CHRYSLER",946]
["22SC","CALAVERA CR VOYAGER-CARAVAN 96-00 DURANGO 97-03 (MK)","CHRYSLER",736]
["23C","M. 1/4 DE PARRILLA  DG DART 71-73 PLYMOUTH VALIANT 73-74","CHRYSLER",196]
["24C","M.CALAVERA PLYMOUTH VALIANT-VOLARE SUPERBEE 79-80 BIC","CHRYSLER",722]
["25C","M.CALAVERA DG- DART - VOLARE 85-86","CHRYSLER",1366]
["26C","M. 1/4 DG ARIES K- DART K- VOLARE  85-89   (MK)","CHRYSLER",190]
["27IPC","CALAVERA DG ATOS 05-12 IP OPT","CHRYSLER",1399]
["28C","LUZ INTERIOR DE DG DART K 82-89","CHRYSLER",182]
["29C","1/4 LAT. VOLARE DART K 85-89","CHRYSLER",286]
["30C","M. REVERSA PLYMOUTH VALIANT ACAPULCO 65","CHRYSLER",242]
["31C","M.CALAVERA PLYMOUTH VALIANT 64","CHRYSLER",304]
["32C","CARNERO RAM","CHRYSLER",526]
["33C","M.CALAVERA DG PU. 70-71","CHRYSLER",412]
["34C","M.CALAVERA  PLYMOUTH VALIANT 65 -BARRACUDA 64-65","CHRYSLER",228]
["35C","BASE CALAVERA  DG PU. 72-80","CHRYSLER",390]
["36IPC","CALAVERA DG RAM 02-06 IP DP","CHRYSLER",2600]
["37C","M.CALAVERA PLYMOUTH VALIANT 66","CHRYSLER",242]
["38C","CALAVERA DG VAN 1500 94-03 (MK)","CHRYSLER",788]
["39C","1/4 PUNTA DG VAN 94-97 (MK)","CHRYSLER",420]
["40C","TAPON RUEDA RAM  NEGRO 94-05","CHRYSLER",166]
["41C","TAPON RUEDA RAM CROM 94-05","CHRYSLER",282]
["42C","CALAVERA  CR VOYAGER-DG CARAVAN 84-90  C-FILO","CHRYSLER",756]
["43C","CALAVERA  CR VOYAGER-DG CARAVAN 84-90","CHRYSLER",756]
["44IPC","1/4 PUNTA CHEROKEE 84-96-COMANCHE 86-92 IP DP","CHRYSLER",370]
["45C","CALAVERA DG PU RAM 94-01","CHRYSLER",946]
["46C","MICA JEEP WRANGLER CJ5 CJ7 76-86","CHRYSLER",460]
["47C","1/4 PUNTA PU DG RAM 1500 94-01/2500-3500 94-02","CHRYSLER",274]
["48C","CALAVERA DG P.U & DAKOTA 81-96 RAM CHARGER 81-93 F-CROM SPORT","CHRYSLER",1200]
["49C","CALAVERA DG PU & DAKOTA 81-96 RAMM CHARGER 81-93 F-NEGRO SPORT","CHRYSLER",1012]
["50C","CALAVERA DG PU & DAKOTA 81-96 RAM CHARGER 81-93 F-NEGRO  (MK)","CHRYSLER",322]
["51C","M.CALAVERA DART K-ARIES K 81-89  (MK)","CHRYSLER",620]
["52C","M.REVERSA DART K-ARIES K 81-89  (MK)","CHRYSLER",206]
["53C","CALAVERA SHADOW 91-93","CHRYSLER",1728]
["54C","1/4 PUNTA DG ARIES K- DART K-PLYMOUTH VOLARE K  81-84","CHRYSLER",192]
["55C","CALAVERA  SHADOW 89-92","CHRYSLER",2458]
["56C","1/4 FRONT. SHADOW 89-92","CHRYSLER",210]
["56CC","1/4 FRONT. SHADOW 89-92 CROM","CHRYSLER",236]
["57C","1/4 LAT. SHADOW 89-92","CHRYSLER",144]
["58C","CALAVERA  SPIRIT FILO CROM 89-91","CHRYSLER",1986]
["59C","M.CALAVERA DG RAM VAN CARGO B250 71-77","CHRYSLER",474]
["60C","CALAVERA SPIRIT BIC ONDULADA 93-95","CHRYSLER",1986]
["61C","CALAVERA  SPIRIT LEBARON OND 93-95","CHRYSLER",1986]
["62C","1/4 FRONT. SPIRIT DEF 89-93 -LEBARON 93-95","CHRYSLER",214]
["63C","1/4 PUNTA SPIRIT 89-93 (MK)","CHRYSLER",298]
["64C","1/4 PUNTA SPIRIT 89-93- LEBARON 93-95 (MK)","CHRYSLER",298]
["65C","M.CALAVERA PLYMOUTH VALIANT-VOLARE SUPERBEE 79-80 BIC","CHRYSLER",568]
["66C","M.CALAVERA  DG ASPEN STAT. WAGON 81-82  (MK)","CHRYSLER",420]
["67C","CALAVERA  DG P.U.& DAKOTA 81-96-RAMCHARGER 81-93 CROM (MK)","CHRYSLER",640]
["67CC","CALAVERA  DG P.U.& DAKOTA 81-96-RAMCHARGER 81-93 CROM CRIST  (MK)","CHRYSLER",640]
["67TC","CALAVERA  DG P.U.& DAKOTA 81-96-RAMCHARGER 81-93 CROM","CHRYSLER",700]
["68C","CALAVERA  DG P.U.& DAKOTA 81-96-RAMCHARGER 81-93 B-NEGRA (MK)","CHRYSLER",368]
["68CC","CALAVERA  DG P.U.& DAKOTA 81-96-RAMCHARGER 81-93 B-NEGRA SPORT (MK)","CHRYSLER",368]
["68TC","CALAVERA  DG P.U.& DAKOTA 81-96-RAMCHARGER 81-93 B-NEGRA","CHRYSLER",414]
["69C","ZEPPELIN DG PU. CROM  70-80 (MK)","CHRYSLER",260]
["70C","1/4 FRONT. DG P.U. RAMCHARGER 90-93 (MK)","CHRYSLER",290]
["71C","M. ZEPPELIN DG PU. 70-80 (MK)","CHRYSLER",48]
["72C","M. 1/4 FRONT. DG PU. 86-89  (MK)","CHRYSLER",70]
["73C","M. 1/4 FRONT. DG PU. 80-85  (MK)","CHRYSLER",70]
["74C","M. 1/4 PUNTA MONACO 74-77","CHRYSLER",420]
["75IPC","FARO DE SPIRIT 89-93 IP DP","CHRYSLER",1000]
["76C","1/4 PUNTA SPIRIT 89-93- LEBARON 93-95 SPORT (MK)","CHRYSLER",156]
["76CVC","M.CALAVERA DART 70-71","CHRYSLER",468]
["77C","1/4 DE PUNTA DG VAN 77-80 (MK)","CHRYSLER",578]
["78C","CALAVERA NEON 96-99","CHRYSLER",1576]
["79MC","MICA CALAVERA NEON 96-99","CHRYSLER",1050]
["80C","1/4 FRONT. NEON  95-99","CHRYSLER",494]
["81C","1/4 LAT. NEON 95-99","CHRYSLER",210]
["82IPC","CALAVERA JP CHEROKEE 84-96 IP DP","CHRYSLER",1299]
["83IPC","CALAVERA  GRAND CHEROKEE 93-98 IP DP","CHRYSLER",2900]
["84C","BISEL DART K 82-84 (MK)","CHRYSLER",70]
["85C","1/4 FRONTAL DG DART VOLARE MAGNUM 81/82","CHRYSLER",1114]
["86C","1/4 FRONTAL ESQ VOLARE MAGNUM 81-82","CHRYSLER",542]
["87C","BISEL DG ARIES K- DART K-PLYMOUTH VOLARE K  85-89   (MK)","CHRYSLER",820]
["88CC","BISEL DG PU. CROM 86-89 (MK)","CHRYSLER",800]
["88GC","BISEL DG PU. 86-89 GRIS (MK)","CHRYSLER",578]
["89C","1/4 LAT. ATOS 02-04 (MK)","CHRYSLER",138]
["90IPC","CALAVERA DG ATOS 02-04 IP OPT","CHRYSLER",1500]
["91C","BISEL CON 1/4 DG ASPEN -PLYMOUTH VOLARE SEDAN&ST WAGON 78-81","CHRYSLER",1028]
["92C","CARCAZA PARA FARO DG RAM-RAMCHARGER 84-93","CHRYSLER",98]
["93IPC","CALAVERA CR VOYAGER-CARAN 04-08 TOWN COUNTRY 04-07 DOBLE FOCO IP DP","CHRYSLER",3000]
["94IPC","CALAVERA  JP GRAND CHEROKEE 99-04 IP DP","CHRYSLER",3000]
["95CC","BISEL DG MAGNUM 86 - DART K 86-89","CHRYSLER",788]
["96C","1/4 FRONT.-PUNTA CR VOYAGER-CARAVAN 91-95 DOBLE","CHRYSLER",1524]
["96IPC","1/4 FRONT.-PUNTA CR VOYAGER-CARAVAN 91-95 DOBLE IP DP","CHRYSLER",1800]
["97C","CALAVERA  CR VOYAGER-CARAVAN 91-95 C-CANALES","CHRYSLER",682]
["97CC","CALAVERA  CR VOYAGER-CARAVAN 91-95 C-CANALES CRISTAL","CHRYSLER",526]
["98C","CALAVERA CR VOYAGER CARAVAN 91-95 LISO","CHRYSLER",802]
["99C","CALV. STRATUS MOD 1995-00","CHRYSLER",3360]
["100C","1/4 PUNTA CR VOYAGER CARAVAN 87-90","CHRYSLER",396]
["100IPC","1/4 PUNTA CR VOYAGER-CARAVAN 87-90 IP DP","CHRYSLER",301]
["101C","CALAVERA  CENTRAL SPIRIT 93-95 BIC","CHRYSLER",2490]
["102C","1/4 LAT. NEON . 00-05","CHRYSLER",220]
["103C","M.CALAVERA DG RAM VAN CARGO B250 78-92","CHRYSLER",482]
["104C","1/4 PUNTA DG VAN 98-03 (MK)","CHRYSLER",452]
["105C","1/4 FRONT.PUNTA CR VOYAGER-CARAVAN 91-95","CHRYSLER",1524]
["105IPC","1/4 FRONT.PUNTA CR VOYAGER-CARAVAN 91-95 IP DP","CHRYSLER",2000]
["106C","STOP DE CABINA PICK UP DODGE RAM 2008-2019","CHRYSLER",1476]
["107C","STOP DE CABINA DODGE RAM 2002-2008","CHRYSLER",1838]
["108C ","CALAVERA DG RAM PICK UP 09-19","CHRYSLER",2000]
["1N","1/4 SALPICADERA ZAKURA 81-88","NISSAN",534]
["2IPN","CALAVERA NS VERSA 11-16 IP OPT","NISSAN",1550]
["3N","PARRILA TSURU III 92-00","NISSAN",418]
["3CVN","1/4 LAMP.DIRECC. SAKURA  81","NISSAN",294]
["4N","1/4 LAT. NS TSURU II 88-89 (MK)","NISSAN",134]
["5N","1/4 FRONT. DATSUN SAKURA 81","NISSAN",174]
["6N","M 1/4 DATSUN DEF SAKURA 81","NISSAN",92]
["7N","M.DATSUN GUAYIN 69-73  (MK)","NISSAN",180]
["8N","1/4 LAT. SALP. DATSUN 69-73","NISSAN",250]
["9N","CALAVERA DATSUN GUAYIN 79-83","NISSAN",1334]
["10N","1/4 FRONT. NS TSURU I 84-85  GUAYIN-SAMURAI (MK)","NISSAN",146]
["11N","M. 1/4 FRONT. NS TSURU I 84-85  GUAYIN-SAMURAI (MK)","NISSAN",54]
["12N","CALAVERA  NS TSURU I 85-87","NISSAN",998]
["13N","M.DIRECC. CALAVERA  NS TSURU I 85-87","NISSAN",168]
["14IPN","CALAVERA NS MARCH 11-14 IP OPT","NISSAN",2000]
["15N","1/4 LAT. NS TSURU I 84-87 GUAYIN-SAMURAI","NISSAN",168]
["16N","M. 1/4 LAT. NS TSURU I 84-87 GUAYIN-SAMURAI","NISSAN",52]
["17N","M. 1/4 PUNTA NS TSURU I 85-87 SEDAN-GUAYIN (MK)","NISSAN",80]
["18N","1/4 PUNTA NS TSURU I 85-87 SEDAN-GUAYIN (MK)","NISSAN",156]
["19N","1/4 FRONT. NS TSURU II 85-86","NISSAN",318]
["20N","M. 1/4 FASCIA TSURU II  85-86","NISSAN",144]
["21N","M. 1/4 PUNTA NS TSURU II 88-91","NISSAN",70]
["22N","CALAVERA  TSURU II 88-89","NISSAN",1188]
["23N","1/4 PUNTA NS TSURU II 88-91 MK","NISSAN",138]
["24N","1/4 FRONT. NS TSURU II 88-91  AUSTERO MK","NISSAN",132]
["25N","CALAVERA  NS TSURU II 90-91","NISSAN",1418]
["26N","CALAVERA TSURU GUAYIN II 89-91 (MK)","NISSAN",946]
["27N","M. 1/4 FRONT. NS TSURU II 89-91 LUJO-D21 94-01 (MK)","NISSAN",54]
["28N","1/4 FRONT. NS TSURU II 89-91 LUJO-D21 94-01 (MK)","NISSAN",132]
["29N","1/4 FRONT. NS TSURU II 89-91 LUJO-D21 94-01 SPORT","NISSAN",250]
["30N","M. 1/4 FRONT. NS TSURU II 88-91  AUSTERO (MK)","NISSAN",74]
["31IPN","CALAVERA  NS TSURU I 84 IP DP","NISSAN",2500]
["32IPN","CALAVERA NS TSURU I 84-87  GUAYIN IP DP","NISSAN",2500]
["33N","1/4 FRONT.CAMIONETA ICHI-VAN LARGO 87-92","NISSAN",332]
["34N","1/4 FRONT.CAMIONETA ICHI-VAN CORTO 87-92","NISSAN",332]
["35N","CALAVERA  NS ESTAQUITAS 70-91  (MK)","NISSAN",274]
["36N","M. 1/4 CAMIONETA ICHI-VAN LARGO  87-92","NISSAN",168]
["37N","M. 1/4 CAMIONETA ICHI-VAN CORTO 87-92","NISSAN",168]
["38N","CALAVERA  NS ICHI VAN 87-92","NISSAN",588]
["39N","BASE CALAVERA  NS ESTAQUITAS 70-91  (MK)","NISSAN",158]
["40N","CALAVERA  DATSUN 74-78","NISSAN",1282]
["41N","M.CALAVERA  NS ESTAQUITAS 70-91  (MK)","NISSAN",106]
["42N","M. 1/4 LAT. DATSUN 74-78  (MK)","NISSAN",58]
["43N","1/4 LAT. DATSUN 74-78","NISSAN",126]
["44N","M.CALAVERA DATSUN 70-73","NISSAN",420]
["45N","M. 1/4 DEF DATSUN 74-78 (MK)","NISSAN",70]
["46N","1/4 FRONT. DATSUN 74-78","NISSAN",210]
["47N","M. CALAV DATSUN  71-73","NISSAN",434]
["48N","TAPON NS PU NP 300 MOD. 15-17","NISSAN",106]
["49N","TAPON NS PU D21 87-97","NISSAN",84]
["50N","TAPON NS PU D21 CROM 87-97","NISSAN",154]
["51N","REJILLA DATSUN 510 2 y 4 PTS DERECHA 79-84 (MK)","NISSAN",336]
["52N","REJILLA DATSUN 510 2 Y 4 PTS IZQUIERDA 79-84 (MK)","NISSAN",336]
["53IPN","LUZ DE PLACA TS  III 92-15 IP OPT","NISSAN",500]
["54N","M.CALAVERA  DG-HYUNDAI H100  06-09","NISSAN",504]
["55N","M. 1/4 FRONT. DATSUN 620 PU 73-80","NISSAN",104]
["56N","1/4 FRONT. DATSUN 620 PU 73-80","NISSAN",162]
["57N","M. LAT.DATSUN 620 PU 73-80","NISSAN",46]
["58N","1/4 LAT. DATSUN 620 PU 73-80","NISSAN",152]
["59N","CALAVERA  NS TSURU III 05-16","NISSAN",662]
["60N","1/4 LAT.DATSUN SALPICADERA 79-84","NISSAN",192]
["61N","M. 1/4 LAT. DATSUN A-10 79-84 (MK)","NISSAN",24]
["62N","CALAVERA  DATSUN 81-83 (MK)","NISSAN",778]
["63N","M. LAMP.DIRECC. CALAVERA  NS 720 81-83  (MK)","NISSAN",256]
["64N","M. STOP CALAVERA  NS 720 81-83 (MK)","NISSAN",256]
["65N","BASE 1/4 FRONT. DATSUN A-10 79-84 (MK)","NISSAN",100]
["66N","1/4 FRONT. DATSUN A-10 79-84 !","NISSAN",358]
["67N","M. 1/4 FRONT. DATSUN A-10 79-84 !","NISSAN",184]
["68N","1/4 FRONT. NS 720 81-93  (MK)","NISSAN",180]
["68MTN","1/4 FRONT NS 720 81-93 METALIZADO (MK)","NISSAN",210]
["68SN","1/4 FRONT. NS 720 81-93 SPORT","NISSAN",286]
["69N","REV. DATSUN PU 85-91  (MK)","NISSAN",264]
["69BN","BASE REV DATSUN PU 85-91 (MK)","NISSAN",148]
["70N","CALAVERA  NS PU 720 NEGRA 84-93 (MK)","NISSAN",394]
["71N","M. 1/4 FRONT. NS 720 81-93(MK)","NISSAN",74]
["72N","1/4 PUNTA NS 720 92-93 S-FRANJA","NISSAN",298]
["73CN","1/4 PUNTA NS 720 92-93 CROMO SPORT","NISSAN",434]
["74N","1/4 PUNTA NS 720 92-93  C-FRANJA","NISSAN",196]
["74CN","1/4 PUNTA NS 720 92-93 CROMO T-O","NISSAN",264]
["75N","M. 1/4 PUNTA NS 720 92-93","NISSAN",116]
["76N","CALAVERA  NS PU 720 CROM 84-93 (MK)","NISSAN",640]
["77N","M. REV DATSUN PU 85-91 (MK)","NISSAN",80]
["78N","M.1/4 PUNTA NS 720 81-91 (MK)","NISSAN",70]
["79N","1/4 PUNTA NS 720 81-91 (MK)","NISSAN",148]
["79BN","BASE 1/4 PUNTA NS 720 81-91  (MK)","NISSAN",84]
["79CN","1/4 PUNTA NS 720 81-91 CROM (MK)","NISSAN",230]
["80N","1/4 LAT. RN TRAFIC 07-14-KANGOO 04-16-PLATINA-CLIO 02-10","NISSAN",126]
["80SN","1/4 LAT. RN TRAFIC 07-14-KANGOO 04-16-PLATINA-CLIO 02-10","NISSAN",200]
["81N","CALAVERA  NS PLATINA 02-10 SPORT ROJA (MK)","NISSAN",526]
["82N","1/4 PUNTA NS D21 90-08 GRIS o P-PINTAR (MK)","NISSAN",216]
["82CN","1/4 PUNTA NS D21 90-08 CROM (MK)","NISSAN",320]
["82SN","1/4 PUNTA NS D21 MOD 1990-08 CROM SPORT","NISSAN",320]
["83N","CALAVERA  NS D21 94-08-D22 09-15  ESTACAS (MK)","NISSAN",420]
["83IAN","CALAVERA  NS D21 94-08-D22 09-15  ESTACAS IA","NISSAN",458]
["84BN","CALAVERA  PU NS D21 94-07 - D22 08-15 (MK)","NISSAN",380]
["84IPN","CALAVERA  PU NS D21 94-07 - D22 08-15 IP","NISSAN",406]
["84RCMN","CALAVERA  PU NS D21 94-07 - D22 08-15 METALIZADA (MK)","NISSAN",474]
["84RCN","CALAVERA  PU NS D21 94-07 - D22 08-15 (MK)","NISSAN",406]
["85N","M. REVERSA CALAVERA  NS D21 94-08-D22 09-15  ESTACAS (MK)","NISSAN",72]
["86N","M. STOP CALAVERA  NS D21 94-08-D22 09-15  ESTACAS (MK)","NISSAN",96]
["87N","M. LAMP.DIRECC. CALAVERA  NS D21 94-08-D22 09-15  ESTACAS (MK)","NISSAN",82]
["88N","M. 1/4 PUNTA DATSUN GUAYIN 84","NISSAN",202]
["89N","1/4 PUNTA NS TSURU I 84 GUAYIN","NISSAN",362]
["90N","CALAVERA  NS TSURU III 92-93","NISSAN",882]
["91N","1/4 PUNTA TSURU III 92-93 Y 97-00 (MK)","NISSAN",180]
["92N","1/4 PUNTA NS TSUBAME 94-04","NISSAN",348]
["93N","1/4 PUNTA TSURU III 94-96  (MK)","NISSAN",252]
["94EN","CALAVERA  NS URVAN 02-14 (MK)","NISSAN",558]
["95CIPN","BISEL TSURU CROM 85-87 IP OPT","NISSAN",1500]
["95GIPN","BISEL TSURU GRIS 85-87 IP OPT","NISSAN",600]
["96N","CALAVERA  PU NS D21 94-07 - D22 08-15 SPORT","NISSAN",1128]
["97CN","BISEL CAMTA ICHI-VAN CROM 87-93 (MK)","NISSAN",780]
["97GN","BISEL CAMTA ICHI VAN GRIS  87-93 (MK)","NISSAN",630]
["98N","CALAVERA   NS TSURU III 94-96","NISSAN",684]
["99N","1/4 PUNTA TSURU III 92-93 Y 97-00 SPORT (MK)","NISSAN",242]
["100N","1/4 PUNTA TSURU III 01-16 SPORT (MK)","NISSAN",242]
["101CVN","CALAVERA  NS PU. 81-87 (720)","NISSAN",830]
["101IPN","FARO COMPLETO URVAN 07-12 IP OPT","NISSAN",2495]
["102N","1/4 PUNTA URVAN  07-13","NISSAN",982]
["102CVN","CALAVERA  NS PU. 73 (620)","NISSAN",962]
["102IPN","1/4 PUNTA URVAN  07-13 IP OPT","NISSAN",950]
["103N","1/4 DATSUN GUAYIN 84","NISSAN",356]
["104N","1/4 PUNTA NS SENTRA 96-99","NISSAN",500]
["105N","CALAVERA  TSUBAME 94-00","NISSAN",946]
["106N","1/4 LAT. NS D22 08-15-NS FRONTIER 05-15","NISSAN",236]
["107N","CALAVERA NS URVAN 14-16 IP","NISSAN",1570]
["107IPN","CALAVERA NS URVAN 14-16 IP OPT","NISSAN",1700]
["108N","M.CALAVERA DATSUN  68","NISSAN",356]
["109N","1/4 LAT. NS TSURU III 92-12","NISSAN",200]
["110IPN","LUZ INTERIOR NS IP 79-10 OPT","NISSAN",501]
["111N","CALAVERA  NS P.U. D 21 87-97 LARGA BIC CON LEDS M. T-O  (MK) MICA","NISSAN",1524]
["111BN","CALAVERA  NS P.U. D 21 87-97 LARGA BIC CON LEDS BICOLOR  (MK)","NISSAN",1524]
["111CN","CALAVERA  NS P.U. D 21 87-97 LARGA BIC CON LEDS DIR CRISTAL  (MK)","NISSAN",1524]
["111RN","CALAVERA  NS P.U. D 21 87-97 LARGA BIC CON LEDS ROJA  (MK)","NISSAN",1524]
["112N","1/4 PUNTA  HIKARI COUPE 88-91 BIC","NISSAN",420]
["113N","1/4 PUNTA  HIKARI COUPE 88-91 CRIST","NISSAN",420]
["114N","CALAVERA  FRONTIER 98-00 C-REV CRIST.","NISSAN",914]
["115N","CALAVERA  FRONTIER 01-04 C-REV HUMO","NISSAN",914]
["116BEN","CALAVERA  NS P.U. D 21 87-97 LARGA BIC (MK)","NISSAN",600]
["116DN","CALAVERA  NS P.U. D 21 87-97 LARGA BIC","NISSAN",691]
["116RCN","CALAVERA  NS P.U. D 21 87-97 LARGA DIR CRISTAL (MK)","NISSAN",600]
["117N","CALAVERA  NS TSURU III 01-04 FILO NEGRO","NISSAN",684]
["118N","CALAVERA  PU NS AMERICANA 85-86","NISSAN",660]
["119CN","CALAV MAZDA PU. 86-93 F-CROM","NISSAN",714]
["119NN","CALAV MAZDA PU. 86-93 F-NEGRO","NISSAN",542]
["119SN","CALAV MAZDA PU. 86-93 SPORT F-CROM","NISSAN",894]
["120CN","1/4 PUNTA NS D21 90-08 CROM (MK)","NISSAN",320]
["120GN","1/4 PUNTA NS D21 90-08 BIC GRIS o P-PINTAR (MK)","NISSAN",264]
["121N","1/4 PUNTA MAZDA PU 86-93","NISSAN",420]
["122N","CALAVERA  PU NS AMERICANA 85-86 CROM","NISSAN",944]
["123N","CALAVERA SENTRA 96-00","NISSAN",882]
["124CN","1/4 PUNTA NS D21 90-08 CROM SPORT (MK)","NISSAN",290]
["125N","CALAVERA  TY PU. 89-95 NORMAL-4X4","NISSAN",588]
["126N","1/4 PUNTA TY PU. 84-88  FILO NEGRO","NISSAN",490]
["127N","1/4 PUNTA TY PU. 84-88 -4 RUNNER 87-89 FILO CROMO","NISSAN",588]
["128N","1/4 PUNTA TSURU III 01-16  (MK)","NISSAN",226]
["129N","CALAVERA  NS TSURU III 01-04","NISSAN",684]
["130N","CALAVERA  SENTRA 01-03 (MK)","NISSAN",1050]
["131N","CALAVERA  TSURU III SPORT 90-16","NISSAN",1160]
["132N","CALAVERA  NS P.U. D 21 87-97 LARGA SPORT","NISSAN",1314]
["133IPN","LUZ INTERIOR TSURU III 92-16 IP OPT","NISSAN",501]
["134N","CALAVERA  DG H100 03-06-HYUNDAI H100 03-06 (MK)","NISSAN",630]
["135N","1/4 PUNTA DG-HYUNDAI H-100 03-05","NISSAN",1124]
["136EN","1/4 PUNTA URVAN 04-06 ECO  (MK)","NISSAN",630]
["137IPN","CALAVERA  MITSUBISHI L200 87-96  FILO NEGRO IP DP","NISSAN",1000]
["138IPN","1/4 PUNTA MITSUBISHI L200 87-96 CROMO BICOLOR IP DP","NISSAN",800]
["139IPN","1/4 PUNTA MITSUBISHI L200 87-96 F-N BICOLOR IP DP","NISSAN",700]
["140N","CALAVERA NS PLATINA 02-06 BIC  (MK)","NISSAN",684]
["140CN","CALAVERA  NS PLATINA 07-10 R-C  (MK)","NISSAN",684]
["141N","1/4 LAT. NS TIIDA 07-16","NISSAN",188]
["142N","CALAVERA  NS QUEST 93-96","NISSAN",1156]
["143N","CALAVERA  NS D21 94-08-D22 09-15  ESTACAS SPORT BIC (MK)","NISSAN",500]
["143LN","CALAVERA  NS D21 94-08-D22 09-15  ESTACAS SPORT BIC LEDS (MK)","NISSAN",1470]
["144N","CALAVERA  NS D21 94-08-D22 09-15  ESTACAS SPORT ROJA (MK)","NISSAN",500]
["145NN","PARRILLA NS D21 94-08","NISSAN",854]
["146CN","PARRILLA NS D21 94-08 CROM","NISSAN",1800]
["147NN","PARRILLA NS TSURU III 05-16 NEGRA","NISSAN",708]
["148CN","PARRILLA NS TSURU III 05-16 CROM","NISSAN",1600]
["149IPN","CALAVERA  TY HIACE 06-13 IP OPT","NISSAN",1700]
["150IPN","CALAVERA  NS TIIDA 07-16  4 PTAS IP OPT","NISSAN",2700]
["151N","CALAVERA  NS TSURU III 00-16 LEDS MOVIMIENTO","NISSAN",2100]
["152N","CALAVERA  NS TSURU III 00-16 LEDS FIJO","NISSAN",2100]
["153IPN","CALAVERA  TY 84-88 NEGRA 6 TORNILLOS IP DP","NISSAN",1900]
["154N","CALAVERA NS PICK UP NP 300 / FRONTIER 16-18","NISSAN",2206]
["155N","PARRILLA NS D22 08-15 CORRUGADA","NISSAN",1762]
["156N","STOP CABINA NISSAN NP 300 FRONTIER 2016-20","NISSAN",2696]
["157N","CALAVERA NS VERSA 11-16 HUM","NISSAN",1890]
["158CN","PARRILLA NISSAN VERSA Y V-DRIVE CROMADA 2015-2020","NISSAN",2600]
["158GN","PARRILLA NISSAN VERSA Y V-DRIVE GRIS 2015-2020","NISSAN",2626]
["158NN","PARRILLA NISSAN VERSA Y V-DRIVE NEGRA 2015-2020","NISSAN",2626]
["159NN","PARRILLA NS NP300 D23 NEGRO 16-19","NISSAN",1190]
["159CN","PARRILLA NS NP300 D23 CROMO 16-19","NISSAN",2690]
["1BM","BISEL MET REVERSERO REDONDO !","BISELES METALICOS",236]
["2BM","BISEL MET P-UNIDAD DATSUN RED JGO !","BISELES METALICOS",316]
["3BM","BISEL MET P-UNIDAD VALIANT RED JGO !","BISELES METALICOS",316]
["4BM","BISEL MET P-UNIDAD VW RED JGO !","BISELES METALICOS",316]
["5BM","BISEL MET P-UNIDAD RAMBLER RED JGO !","BISELES METALICOS",316]
["6BM","BISEL MET P-UNIDAD DODGE CUAD JGO !","BISELES METALICOS",316]
["7BM","BISEL MET P-UNIDAD FORD CUAD JGO !","BISELES METALICOS",316]
["8BM","BISEL MET P-UNIDAD CHEVROLET CUAD JGO !","BISELES METALICOS",316]
["9BM","BISEL MET P-UNIDAD DART K CUAD JGO !","BISELES METALICOS",316]
["10BM","BISEL MET P-UNIDAD NISSAN CUAD JGO !","BISELES METALICOS",316]
["11BM","BISEL MET P-UNIDAD NORMAL CUAD JGO !","BISELES METALICOS",316]
["12BM","BISEL MET P-UNIDAD FORD RED JGO !","BISELES METALICOS",316]
["13BM","BISEL MET P-UNIDAD CHICA CHEV CUAD JGO !","BISELES METALICOS",316]
["14BM","BISEL MET P-UNIDAD RENAULT CUAD JGO !","BISELES METALICOS",316]
["15BM","BISEL MET P-UNIDAD ATLANTIC CUAD JGO !","BISELES METALICOS",316]
["16BM","BISEL MET P-UNIDAD  CARIBE GDE CUAD  JGO !","BISELES METALICOS",316]
["17BM","BISEL P-UNIDAD PARRILLLA DODGE RAM 92-93 GRIS!","BISELES METALICOS",118]
["18BM","BISEL P-UNIDAD PARRILLLA DODGE RAM 92-93 CROM!","BISELES METALICOS",316]
["19BM","BISEL MET P-UNIDAD CHEVROLET RED GDE JGO !","BISELES METALICOS",316]
["20BM","BISEL MET P-UNIDAD DODGE RED GDE JGO !","BISELES METALICOS",316]
["21BM","BISEL MET P-UNIDAD FORD RED CHICO JGO !","BISELES METALICOS",316]
["22BM","BISEL MET P-UNIDAD FARO DE HALOGENO !","BISELES METALICOS",316]
["23TBM","BISEL P-CALAVERA JEEP 952 1P","BISELES METALICOS",202]
["24TBM","B. P-LAMP.DIRECALAVERA  992-79NP 79CP 81CP","BISELES METALICOS",184]
["25TBM","BISEL AMPERIMETRO CHICO","BISELES METALICOS",70]
["26TBM","BISEL AMPERIMETRO MEDIANO","BISELES METALICOS",134]
["27TBM","BISEL AMPERIMETRO GRANDE","BISELES METALICOS",208]
["28TBM","BISEL OVALADO  PLAF. 106P 109P","BISELES METALICOS",216]
["29TBM","B. P-PLAF EMB DE GOMA 2\"\"\"\"","BISELES METALICOS",110]
["30TBM","BISEL MINI INDICADOR","BISELES METALICOS",34]
["31TBM","BISEL P-EMB DE GOMA 1003 4P 111P","BISELES METALICOS",202]
["32BM","BISEL ADORNO PLAFON REDONDO 4","BISELES METALICOS",182]
["33BM","BISEL PARA LAMP.DIRECALAVERA  82P","BISELES METALICOS",156]
["34BM","BISEL PARA PLAFON ELIPTICO 77D CROM","BISELES METALICOS",118]
["1D","CALAVERA  DINA PU D-1000 - GMC 1000  74-83 . (MK)","DINA",420]
["2D","BASE CALAVERA  DINA PU D-1000 - GMC 1000  74-83 . (MK)","DINA",210]
["3D","M.CALAVERA  DINA PU D-1000 - GMC 1000  74-83 . (MK)","DINA",210]
["4D","M.CALAVERA JP WRANGLER 91-06","DINA",76]
["5TD","PLAF. TIPO BOSCH MEDIANO","DINA",300]
["6D","M. PLAFON PAMBAZO ALTA","DINA",38]
["7D","M. PLAFON LAMP.DIRECC. DINA","DINA",50]
["8D","M. PLAFON PAMBAZO","DINA",26]
["9D","CALAVERA  ENVOLVENTE AUTOBUS ALPHA-CAPRE-CASAVAN 1T","DINA",206]
["9ORD","CALAVERA  ENVOLVENTE AUTOBUS ALPHA-CAPRE-CASAVAN 1T  ORG","DINA",316]
["9TD","CALAVERA  ENVOLVENTE AUTOBUS ALPHA-CAPRE-CASAVAN 1T","DINA",218]
["10D","M. 1/4 BISEL REY MIDAS","DINA",204]
["11D","M.CALAVERA  ENVOLVENTE AUTOBUS ALPHA-CAPRE-CASAVAN 1T (MK)","DINA",190]
["12D","PLAFON AUTOBUS REY MIDAS 80-86  (MK)","DINA",692]
["13D","M. PLAFON AUTOBUS REY MIDAS 80-86  (MK)","DINA",82]
["14ED","CALAVERA  ENVOLVENTE AUTOBUS EUROCAR 4T (ECO)","DINA",206]
["14TD","CALAVERA  ENVOLVENTE AUTOBUS EUROCAR 4T","DINA",210]
["15ED","M.CALAVERA  ENVOLVENTE AUTOBUS EUROCAR 4T (MK)","DINA",112]
["16D","CALAVERA  ENVOLVENTE AUTOBUS ALPHA-CAPRE-CASAVAN 1T SPORT (MK)","DINA",206]
["17TD","CALAVERA  OVALADA PANEL AUTOBUS AYCO ZAFIRO (12-24 V)","DINA",368]
["18D","1/4 LAT. MINIBUS M.BENZ !","DINA",162]
["19D","LAT. LAMP.DIRECALAVERA   M. BENZ 355-371/447","DINA",80]
["19MD","M. LAT. LAMP.DIRECALAVERA   M. BENZ 355-371/448","DINA",54]
["20TD","PLAFON BOSCH 9 LEDS FIJO","DINA",294]
["21D","M.CALAVERA  PLANA MASA-CITUS-DINA","DINA",194]
["22TD","PLAFON BOSCH 9 LEDS GIR","DINA",340]
["23D","CALAVERA  PLANA MASA-CITUS-DINA","DINA",222]
["23TD","CALAVERA  PLANA MASA-CITUS-DINA","DINA",222]
["24D","M.CALAVERA  CAMION MERCEDES B. 93-96","DINA",246]
["25D","1/4 PUNTA MERCEDES B. 1620 -FAMSA 95-07","DINA",180]
["26DD","M.CALAVERA MICROBUS CASAVAN 89-94","DINA",610]
["26ED","M.CALAVERA MICROBUS CASAVAN ECO 89-94  (MK)","DINA",684]
["27D","CALAVERA  MICROBUS CASAVAN 89-94","DINA",1060]
["28D","M. 1/4 PUNTA MICROBUS CASAVAN 89-94","DINA",384]
["29D","M. COPETE DELANTERO MICROBUS CASAVAN 89-94","DINA",630]
["29CD","COPETE DEL. DE MICROBUS CASAVAN  89-94","DINA",630]
["30D","PLAF.CIRCULAR DE EMBUTIR TORINO-IRIZAR  2.5","DINA",162]
["31D","M. PLAFON TRASERO MICROBUS URBANO 80s-90s","DINA",202]
["32D","M. 1/4 BISEL MICROBUS HAVRE","DINA",202]
["33D","M.CALAVERA MICROBUS PRISMA","DINA",526]
["34TD","PLAF. LAT. VOLVO 12V 3 LEDS","DINA",138]
["34VD","PLAF. LAT. VOLVO 24V 3 LEDS","DINA",138]
["35D","M. P-AUTOBUS PREMIER 4 TORNILLOS","DINA",108]
["36D","M. P-AUTOBUS HALCON 2 TORNILLOS","DINA",116]
["37TD","LAT. MARCO POLO AMB, R-C Y A-C","DINA",126]
["38ED","1/4 PUNTA DINA-FAMSA-INTERNATIONAL 80-94","DINA",232]
["38TD","1/4 PUNTA DINA-FAMSA-INTERNATIONAL 80-94","DINA",264]
["39D","M. 1/4 LAT. DINA FAMSA","DINA",50]
["40D","PLAFON CASETA FAMSA","DINA",90]
["41TD","PLAFON DIRECALAVERA  TRASERO 3 TOR - 7 LED FIJO","DINA",300]
["42D","BISEL MICROBUS CASAVAN 89-94","DINA",1448]
["43TD","BISEL CAMION DINA-FAMSA CROM 80-94","DINA",450]
["44TD","BISEL CAMION DINA-FAMSA  GRIS 80-94","DINA",168]
["45D","COPETE DE TAXI BAJO PARA MONTAR","DINA",246]
["46D","1/4 PUNTA AUTOBUS VIAGGIO (DINA)","DINA",624]
["47D","COPETE OFICIAL DE TAXI  (SETRAVI) ALTO","DINA",314]
["47CD","COPETE OFIC DE TAXI (SETRAVI) COMP","DINA",770]
["48D","ZEPPELIN LAT. MERCEDES","DINA",130]
["48MD","DINA M. ZEPPELIN MERCEDES B.","DINA",64]
["49D","1/4 PUNTA FREIGHTLINER FI-D-120  90-07","DINA",1084]
["50TD","1/4 PUNTA Y CALAVERA   M. BENZ.-ANDARE-MARCO POLO Y-TORINO 02-07","DINA",162]
["51D","CALAVERA  ENVOLVENTE AUTOBUS ALPHA-CAPRE-CASAVAN 1T SPORT (MK)","DINA",206]
["52D","CALAVERA  ENVOLVENTE AUTOBUS ALPHA-CAPRE-CASAVAN 1T SPORT (MK)","DINA",206]
["53D","CALAVERA  ENVOLVENTE EUROCAR MINIBUS AYCO -BUS VOLVO  (MK)","DINA",264]
["53LD","CALAVERA  ENVOLVENTE EUROCAR MINIBUS AYCO -BUS VOLVO32 LEDS DIFUSOR","DINA",720]
["53TLD","CALAVERA  ENVOLVENTE EUROCAR MINIBUS AYCO -BUS VOLVO LEDS FIJO","DINA",720]
["54ED","CALAVERA  TIPO ESCUADRA PARA MINIBUS AYCO Y BUS URBANO","DINA",316]
["54TOD","CALAVERA  TIPO ESCUADRA PARA MINIBUS AYCO Y BUS URBANO SPORT","DINA",840]
["55TD","CALAVERA  AUTOBUS 6\" BUSSCA","DINA",180]
["56TD","CALAVERA  AUTOBUS 5 1/2\" MERCEDES","DINA",180]
["57STD","LAT. LUZ POSICION UNIVERSAL AYCO-EUROCAR -SOQUET","DINA",90]
["57TD","LAT. LUZ POSICION UNIVERSAL AYCO-EUROCAR C-SOQUET","DINA",106]
["58STD","LAT. REFL MASA-DINA  S-SOQUET","DINA",74]
["58TD","LAT. REFL MASA-DINA  C-SOQUET","DINA",84]
["59D","BISEL P/FARO FREIGHTLINER S/CTO FL 120 90-07","DINA",1890]
["60D","PLAF. TRASERO AUTOBUS Y MICRO PREMIER","DINA",372]
["61TD","LAT. LUZ POSICION UNIVERSAL  VIAGIO- MARCO POLO C-SOQUET","DINA",208]
["62TD","LAT. LUZ POSICION UNIVERSAL  VIAGIO- MARCO POLO S-SOQUET","DINA",152]
["63D","CALAVERA  CAMION MERCEDES B. 93-96","DINA",866]
["64TD","LUZ POSICION DINA OVERHEAD  3 LEDS","DINA",96]
["65D","1/4 LATERAL FREGHLINER SALPICADERA M2 00-15","DINA",294]
["66ED","PLAF. EMB DE BOSH 5\"\"\"","DINA",106]
["66TD","PLAF. EMB DE BOSH 5\"\"","DINA",150]
["67TD","M. PLAFON DE BOSH 5","DINA",90]
["68D","ZEPPELIN MARCO POLO 115","DINA",202]
["69D","M.PLAF. RANGER ESTACAS BICOLOR","DINA",142]
["70D","1/4 PUNTA  KENWORTH T600, T800 92-04","DINA",762]
["71D","LAT. NAVEGACION MERCEDES BENZ,MARCOPOLO Y TORINO","DINA",106]
["71MD","M. LAT. NAVEGACION MERCEDES BENZ,MARCOPOLO Y TORINO","DINA",48]
["72D","1/4 PUNTA AUTOBUS INTERNATIONAL 9200-9400  99-11","DINA",894]
["72CVD","MICA CALV. MASTER JGO","DINA",1196]
["73D","PLAF. LUZ TRASERA LAMP.DIRECALAVERA  T-VOLVO AYCO IRISAR LEDS","DINA",366]
["74D","LUZ  REVERSA REDONDO 55MM AYCO IRISAR VOVLO 7 LEDS","DINA",242]
["75D","LUZ TRASERA ARILLO REFL LEDS TIPO HELLA VOLVO HDLT-VOLVO IRISAR","DINA",366]
["76D","1/4 PUNTA CAMION  VOLVO  2A GEN. 96-03","DINA",1750]
["77D","LAT. POSICION ELIPTICA GRANDE 4 LEDS","DINA",142]
["78D","LAMP. LUZ DE PLACA 3 LED TIPO AUTOBUS UNIVERSAL","DINA",138]
["79D","CALAVERA  RECTANGULAR 2 SOQUETS STOP ( 59D CALAVERA V. )","DINA",404]
["80D","LAMPARA INTERIOR PUERTA 12 LEDS KENWORTH","DINA",306]
["81D","PLAF. LAT NAVEGACION 3 LEDS IRIZAR MARCOPOLO","DINA",158]
["82D","LAMP. ELIPTICA LUZ INTERIOR AUTOBUS DE ESCALON 12 LEDS","DINA",838]
["83D","LAMP. ELIPTICA LUZ INTERIOR AUTOBUS DE EMBUTIR 12 LEDS","DINA",432]
["84D","LUZ DE NAVEGACION 4 LEDS GRANDE (1","DINA",122]
["85D","PLAF.  3 LEDS LAT. OVALADO SOBREPONER  UNIVERSAL","DINA",96]
["86D","1/4 PUNTA CAMION INTERNATIONAL 05-13","DINA",952]
["87D","PLAFON CIRCULAR MERCEDES BENZ IRIZAR, MASA, MARCOPOLO 3.74\"\"","DINA",116]
["89D","FAROS UNIDAD RECTANGULAR 5X7 15 LEDS ALTA BAJA (JGO)","DINA",966]
["1F","M. PLAF FD ESCUDO C-REV  (MK)","FORD",64]
["2F","M. PLAF FD ESCUDO S-REV  (MK)","FORD",64]
["3F","1/4 FRONT. FD F-350-SUPER DUTY-EXCURSION 99-01 AMB","FORD",788]
["4F","1/4 FRONT. FD F-350-SUPER DUTY-EXCURSION 02-04 BIC","FORD",788]
["5F","1/4 LAT. FD FOCUS 00-04","FORD",278]
["6F","CALAVERA FD WINDSTAR 95-98","FORD",918]
["7F","1/4 PUNTA FD WINDSTAR 95-97 BIC","FORD",652]
["8F","CALAVERA  FD ESCORT GUAYIN 95-98","FORD",1586]
["9F","1/4 LAT. FD PU F-150-F-250  73-79","FORD",76]
["10F","1/4 PUNTA FD WINDSTAR 98","FORD",652]
["11F","M. CALAV. FORD PICK UP MOD 1969-79","FORD",118]
["11BF","BASE PARA CALAVERA FD PU 69-79","FORD",304]
["11PF","M. CALAV. FORD PICK UP COMP MOD 1969-79","FORD",432]
["12IPF","CALAVERA WINDSTAR 99-03 IP DP","FORD",2900]
["13F","M.CALAVERA FD FALCON 68-70","FORD",650]
["14F","1/4  PUNTA AEROSTAR 86-91 AMB","FORD",336]
["15F","1/4 PUNTA AEROSTAR 92-97 BIC","FORD",384]
["16F","BISEL FD AEROSTAR 92-97 CON 1/4","FORD",2038]
["16SF","BISEL FD AEROSTAR 92-97 SIN 1/4","FORD",1698]
["17F","BISEL FD AEROSTAR 86-91 CON 1/4","FORD",1986]
["17SF","BISEL FD AEROSTAR 86-91 SIN 1/4","FORD",1698]
["18F","M.CALAVERA FD MUSTANG S-PINTAR 83-86","FORD",2184]
["18PF","M.CALAVERA FD MUSTANG PINTADA 83-86","FORD",2520]
["18USF","M. CALAV FD MUSTANG AMERICANA 87-93","FORD",1538]
["19F","1/4  FRONT.  FD PU 73-79  !","FORD",324]
["20F","1/4 LAT. MUSTANG 78-86","FORD",182]
["21F","STOP DE CABINA FD RANGER 2013-2022","FORD",2310]
["22F","1/4 PUNTA FD MUSTANG 87-93","FORD",822]
["23IPF","1/4 PUNTA FD MUSTANG 94-98 IP DP","FORD",1100]
["24F","M.CALAVERA MUSTANG S-PINTAR 81-82","FORD",1408]
["24PF","M.CALAVERA MUSTANG  PINTADA 81-82","FORD",1418]
["24PLF","M.CALAVERA MUSTANG 81-82 PLAST.","FORD",736]
["25F","M. REV GRAND MARQUIZ 83-85  !","FORD",116]
["26F","1/4 FRONT. MUSTANG 79-84","FORD",164]
["27F","1/4 PUNTA FD TOPAZ  84-86  (MK)","FORD",536]
["28F","M. CENTRAL FD TOPAZ  84-85","FORD",386]
["29F","M.CALAVERA FD TOPAZ 2 PTS 84-86","FORD",260]
["30F","M.CALAVERA FD TOPAZ 2 PTS 86-88","FORD",348]
["31F","M. CENTRAL FD TOPAZ 86-88","FORD",462]
["32F","M. FD TOPAZ 4 PTS 84-85","FORD",310]
["33F","M.CALAVERA FD TOPAZ 4 PTS 86-88","FORD",310]
["34F","CALAVERA  FD TOPAZ 4 PTS 89-92","FORD",2626]
["35F","1/4 PUNTA FD TOPAZ 87-88","FORD",618]
["36F","1/4 PUNTA FD TOPAZ-GHIA 88-94  (MK)","FORD",420]
["36CF","1/4 PUNTA FD TOPAZ-GHIA 88-94 CRIST (MK)","FORD",420]
["37F","M.CALAVERA  FD TOPAZ 4 PTS 89-92","FORD",1314]
["38F","CALAVERA  FD TOPAZ 92-94","FORD",2416]
["39F","M.CALAVERA FD TOPAZ  92-94  (MK)","FORD",956]
["40F","STOP DE CABINA FD LOBO 98-03 F-150 F-250 98-03","FORD",1912]
["41F","STOP DE CABINA FD LOBO 09-13 F-150  F-250 09-13","FORD",1912]
["42F","M.CALAVERA FD TOPAZ 2 PTS 89-90","FORD",2100]
["43F","M. CALAVERA TEMPO AMERICANA 80-86","FORD",1056]
["44F","1/4 PUNTA FD COUGAR-THUNDERBIRD 89-95","FORD",574]
["45F","1/4  LAT. KA 01-08-FIESTA 00-02-IKON-COURIER 01-08","FORD",210]
["46IPF","CALAVERA FD  FIESTA 05-10 4PTS IP OPT","FORD",2195]
["47IPF","CALAVERA FD FIESTA-IKON 01-03 IP OPT","FORD",1600]
["48F","STOP DE CABINA FD LOBO 04-08 F150/F250 04-07","FORD",2212]
["49F","CALAVERA  COUGAR 90-93","FORD",818]
["50F","1/4 PUNTA FD COUGAR 87-88","FORD",644]
["51F","CALAVERA  FD THUNDERBIRD 90 PINTADA","FORD",888]
["52F","CALAVERA  FD THUNDERBIRD 90 SIN PINTAR","FORD",856]
["53F","1/4 PUNTA FD GRAND MARQUIZ 89-91- FD MERCURY 87-89","FORD",630]
["54F","M. CALAVERA MERCURY 90","FORD",1470]
["55F","STOP CABINA FD RANGER 93-05","FORD",1670]
["56F","1/4 FRONT. FD GRAND MARQUIZ 92-94 (MK)","FORD",210]
["57F","STOP CABINA FD RANGER 05-12 COURIER 00/12","FORD",1670]
["58F","M. REV FAIRMONT GUAYIN 78-82  (MK)","FORD",80]
["59F","CALAVERA FD FAIRMONT GUAYIN 78-82  (MK)","FORD",840]
["60F","1/4 FRONT. FD PU. 73-79","FORD",106]
["61F","M. 1/4 FD PU.  73-79","FORD",76]
["62F","M.CALAVERA FD FAIRMONT ELITE 81-83","FORD",596]
["62PLF","M.CALAVERA FD FAIRMONT ELITE 81-83 PLAST","FORD",206]
["63F","M.CALAVERA FD FAIRMONT AUSTERO 77-80","FORD",536]
["64F","1/4 FRONT. BISEL FAIRMONT AUSTERO 77-80","FORD",266]
["65F","M. REV FAIRMONT ELITE Y AUST 77-83","FORD",70]
["65PLF","M.REV FAIRMONT ELITE Y AUST 77-83 PLAST","FORD",62]
["66F","1/4 LAT. FAIRMONT ELITE Y AUST 77-83","FORD",74]
["67TF","1/4 BISEL FD PU. 80-86","FORD",132]
["68F","M. LUZ INTERIOR FAIRMONT 77-86","FORD",168]
["69F","1/4 FRONT. BISEL FAIRMONT ELITE 81-83","FORD",302]
["70F","PLAFON LUZ INT FAIRMONT 77-86","FORD",315]
["71F","CALAVERA   FD ECONOLINE 95-12-EXCURSION 99-07","FORD",1314]
["72F","CALAVERA  FD PU  F-150-F-250 80-88","FORD",368]
["72CTF","CALAVERA  FD PU  F-150-F-250 80-87 CRIS","FORD",316]
["72TF","CALAVERA  FD PU  F-150-F-250 80-88","FORD",368]
["73F","CALV. FD PU. F-150/250 73-79 VAN 75-91 BRONCO 78-79 (MK)","FORD",216]
["73CF","CALV. FD PU F-150/250 73-79VAN 75-91 BRONCO 78-79 (MK)","FORD",216]
["74F","M. CALV FD PU F-150/250 73-79 VAN 75-91 BRONCO 78-79 (MK)","FORD",136]
["75F","1/4 LAT. FD PU. 80-86","FORD",80]
["76F","M. 1/4 FRONT. FD PU 70-72","FORD",308]
["77F","CALAVERA  FD COURIER 01-12","FORD",1818]
["78F","CALAVERA  FD EXPLORER 95-97","FORD",1002]
["79F","1/4 PUNTA FD RANGER TIPO SPORT 93-97","FORD",732]
["80F","PLAFON CASETA FD 78-96","FORD",64]
["80TF","PLAFON CASETA FD 78-96 HUMO","FORD",72]
["81F","REVERSA CROW VICTORIA LTD 78-81","FORD",334]
["82F","1/4 LAT. MAVERICK 73-77","FORD",182]
["83F","M.CALAVERA CROW VICTORIA LTD 78-81","FORD",288]
["84F","1/4 LAT. CROWN VICT LTD 78-81 !","FORD",242]
["85F","1/4 CENTRAL CROWN VICTORIA LTD 78-81","FORD",282]
["86F","CALAVERA FD PU  F-150-F-250 87-91","FORD",368]
["86IAF","CALAVERA  FD PU F-150-F-250 87-91 IA","FORD",442]
["87F","1/4 LAT. FD RANGER 83-88","FORD",140]
["88F","CALAVERA  FD PU F-150-F-250 92-9 SPORT","FORD",756]
["89F","CALAVERA  FD PU F-150-F-250 92-96","FORD",358]
["89CTF","CALAVERA  FD PU F-150-F-250 92-96 CRIS","FORD",358]
["89TF","CALAVERA  FD PU F-150-F-250 92-96","FORD",358]
["90CF","1/4 PUNTA FD  PU F-150-F-250 87-91 CROMO","FORD",620]
["90HF","1/4 PUNTA FD  PU F-150-F-250 87-91 CROMO HUM","FORD",620]
["91F","1/4 PUNTA FD  PU F-150-F-250 87-91 F-N","FORD",484]
["92F","1/4 FRONT. FD F-150-F-250-F-350 92-96","FORD",684]
["93F","1/4 PUNTA FD F-150-F-250-F-350 92-96","FORD",190]
["94F","CALAVERA FD EXPLORER 91-94","FORD",1088]
["95F","CALAVERA  FD RANGER-EXPLORER-BRONCO 83-92 SPORT","FORD",1156]
["96F","1/4  PUNTA FD ESCORT 94-96","FORD",532]
["97F","CALAVERA  FD RANGER-EXPLORER-BRONCO 83-92","FORD",432]
["98F","CALV FDLOBO F-150 2004-08","FORD",1786]
["99F","BISEL BISEL FD F-150-F-250 79 P-PINTAR FARO CUADRADO","FORD",420]
["100F","1/4 FRONTAL. FD RANGER 83-88 BRONCO II 84-88","FORD",200]
["101F","BISEL FAIRMONT AUSTERO 78-80","FORD",828]
["102F","BISEL FAIRMONT ELITE 81-83","FORD",1050]
["103CF","BISEL FD F-150-F-250 79 CROM FARO","FORD",388]
["104F","BISEL FD ECONOLINE 92-96 CUSTOM","FORD",458]
["105F","BISEL FD TOPAZ 84-86 (MK)","FORD",684]
["106F","BISEL CAMION FD 800","FORD",1406]
["107F","B. FD CAMION MOD. F-600 80-86 CROM","FORD",825]
["108F","BISEL FD CAMION  F-600 80-86 NEGRO","FORD",375]
["109F","REJILLA CALAVERA  FD PU. 87-96 (JGO) NEGRA","FORD",342]
["110F","BISEL FD F-150-F-250 80-86 CROM","FORD",1108]
["111F","PARRILA DE COUGAR CROM  85","FORD",1366]
["112CF","BISEL GRAN MARQUIZ CON 1/4 MOD 1983-86","FORD",1078]
["112SF","BISEL GRAN MARQUIZ SIN 1/4 MOD 1983-86","FORD",218]
["113CF","BISEL FD EXPLORER 91-94-RANGER 89-92 COMPLETO","FORD",946]
["113SF","BISEL FD EXPLORER 91-94-RANGER 89-92 CROM SIN 1/4","FORD",736]
["114F","1/4 PUNTA FD EXPLORER 91-94-RANGER 89-92","FORD",210]
["115F","1/4 FRONT. FD EXPLORER 91-94-RANGER 89-92","FORD",504]
["116F","BISEL CROWN VICTORIA 78-81 CON 1/4S","FORD",1266]
["117F","1/4 PUNTA FD RANGER 93-97","FORD",410]
["118F","CALAVERA  FD COUGAR 93","FORD",736]
["119F","1/4 PUNTA FD TOPAZ 87-88","FORD",568]
["120IPF","CALAVERA  FD EXPLORER 98-01 IP DP","FORD",1800]
["121F","CALAVERA  FD THUNDERBIRD 94-97  SIN PINTAR","FORD",672]
["122F","CALAVERA  FD THUNDERBIRD 94-97  PINTADA","FORD",736]
["123F","1/4 PUNTA FD ECONOLINE 92-06","FORD",782]
["124F","CALAVERA  FD RANGER 10-12","FORD",2402]
["125F","CALAVERA  FD AEROSTAR 86-95","FORD",1270]
["126F","1/4 TAURUS COMP 89","FORD",1660]
["127F","CALAVERA FD RANGER HUMO 01-05 TO","FORD",858]
["127TOF","CALAVERA FD RANGER HUMO 01-05 TO","FORD",858]
["128F","CALAVERA FD RANGER 05-09","FORD",906]
["128TOF","CALAVERA FD RANGER 05-09","FORD",1208]
["129TOF","CALAVERA FD RANGER 05-09 F-NEGRO TO","FORD",1292]
["130F","1/4 PUNTA FD FAIRMONT ELITE II  83","FORD",202]
["131F","REFLECTOR CENTRAL DE TAURUS  89","FORD",1156]
["132F","CALAVERA COUGAR  94-97","FORD",816]
["133F","CALAVERA FD PCIK-UP  F-150-F-250 04-09","FORD",1156]
["134F","M.CALAVERA THUNDERBIRD  85-86","FORD",1230]
["135F","1/4 PUNTA THUNDERBIRD S.V.O  86-89","FORD",864]
["136F","CALAVERA FD RANGER SPORT 93-07","FORD",1366]
["137F","CALAVERA  FD RANGER 93-97","FORD",914]
["138F","PARRILLA DE COUGAR PINTADA 92-95","FORD",1470]
["139F","BISEL FRONTAL CROMO FD F-150-F-250-F-350 92-96","FORD",830]
["140F","BISEL FRONTAL NEGRO FD F-150-F-250-F-350 92-96","FORD",546]
["141F","CALAVERA  FD RANGER 01-04","FORD",1128]
["142F","CALAVERA  FD RANGER SPORT 95-07","FORD",1346]
["143F","CALAVERA FD PU. LOBO SPORT 97-09","FORD",1344]
["144F","1/4 PUNTA FD EXPEDITION 97-02  F-150- F-250 97-04  LOBO 97-03 (MK)","FORD",284]
["145F","CALAVERA  FD F-150-F-250-PICK-UP  97-03","FORD",850]
["146F","REJILLA CALAVERA  FD FD F-150-F-250-LOBO 97-04","FORD",390]
["147F","1/4 PUNTA FD PU F-150-F-250 87-91 F-N","FORD",484]
["148F","CALAVERA FD RANGER 00","FORD",852]
["149TOF","CALAVERA FD RANGER 98-99 TO","FORD",788]
["150F","1/4 PUNTA FD GRAND MARQUIZ 95-97","FORD",882]
["151F","CALAVERA FD VILLAGER MOD. 93-95","FORD",1156]
["152F","CALAVERA FD RANGER MOD 2012-2019","FORD",2604]
["153F","PLAFON CASETA ZEPELIN SUPER DUTY 99-16","FORD",294]
["154F","PLAFON CASETA ZEPELIN SUPER DUTY 99-16 LED","FORD",410]
["155F","CALAVERA FORD F150/LOBO 2009-2014","FORD",2784]
["1P","PLAF.CALAVERA  JP WRANGLER 9108","PLAFON",168]
["1MP","PLAF.CALAVERA  JP WRANGLER 9108 METALICO","PLAFON",190]
["1TVP","PLAF.CALAVERA  JP WRANGLER 9108 C/VENT","PLAFON",190]
["1TP","PLAF.CALAVERA  JP WRANGLER 9108 (LISA-CORR)","PLAFON",168]
["2P","PLAF.CALAVERA  FORD ESCUDO C/R (MK)","PLAFON",130]
["3P","PLAF.CALAVERA  FORD ESCUDO S/R (MK)","PLAFON",142]
["4P","PLAF. 4\"\" UNIV.EMBUTIDO C-GR","PLAFON",126]
["4FXP","PLAF. 4\" UNIV.EMBUT","PLAFON",240]
["4TP","PLAF. 4\" UNIV.EMB","PLAFON",126]
["5P","PLAF. 4\" CEL","PLAFON",152]
["6TP","PLAF. SOMEX REDONDO 5","PLAFON",382]
["7P","PLAF. UNIVERSAL REDONDO 5 1/2","PLAFON",248]
["8TP","PLAF.CALAVERA  JP WRANGLER 91-08  TIPO TUNEL SPORT","PLAFON",274]
["9P","PLAF. PAMBAZO BASE NEGRA","PLAFON",82]
["10TP","PLAF. 2\" UNIV.EMBUTIDO C-B","PLAFON",168]
["11P","PLAF. PAMBAZO CROM","PLAFON",130]
["12P","PLAF. LAT. NAVEGACION TIPO OVAL 5 LEDS","PLAFON",456]
["13ORP","PLAF.OVALADO LAT.MARCOPOLO 2LED'S COLORES ORIGINAL","PLAFON",420]
["13TP","PLAT. OVALADO LAT. MARCO POLO 2 LEDS COLORES","PLAFON",116]
["14TP","PLAF. DELFIN CHICO 5 1/2","PLAFON",116]
["15P","PLAF. LAT. MULTIUSOS 5 LEDS COLORES","PLAFON",142]
["16P","PLAF. ARILLO DE LUJO ECONOMICO","PLAFON",202]
["16TP","PLAF. ARILLO DE LUJO","PLAFON",322]
["17TP","PLAF. ARILLO GRANDE 4 1/4","PLAFON",134]
["18TP","PLAF. ARILLO CHICO 3 1/2","PLAFON",134]
["19P","PLAF. 4\" SELLADO C-BRIDA INTEGRAD","PLAFON",126]
["20P","PLAF. UNIV. DE ESTRIBO GRANDE 4","PLAFON",340]
["21P","PLAF. EMBUTIDO 3T","PLAFON",144]
["22EP","PLAF. EMBUTIDO 2T GALVANIZADO ECO","PLAFON",172]
["22TP","PLAF. EMBUTIDO 2T GALVANIZADO","PLAFON",232]
["23EP","PLAF. BOSCH 4 1/2\"","PLAFON",84]
["23TP","PLAF. BOSCH 4 1/2\"","PLAFON",166]
["24P","PLAF.LUZ NAVEGACION ROJA 5 LED REDONDO MARCOPOLO","PLAFON",446]
["25TP","PLAF. UNIV. DE ESTRIBO 3","PLAFON",158]
["26TP","PLAF.LUZ NAVEGACION MINIBUS CAPRE TIPO ZEPPELIN","PLAFON",148]
["27P","PLAF.LUZ NAVEGACION TIPO ZEPPELIN RASPADO","PLAFON",124]
["28TP","PLAF.. EMBUTIDO RECT MINIBUS CAPRE CROM.","PLAFON",130]
["29P","PLAF. PIRAMIDE BLINDADO","PLAFON",138]
["29CP","PLAF. PIRAMIDE BLINDADO CROM","PLAFON",130]
["30TP","PLAF. DOBLE OPTICA DE LUJO","PLAFON",316]
["31P","PLAF. DOBLE OPTICA DE 1 Y 2 SOQUET","PLAFON",106]
["31ZP","PLAF. DOBLE OPTICA DE 2 SOQUET ZAMACK","PLAFON",158]
["32LTP","PLAF.LUZ NAVEGACION LAT. AERODINAMICO LEDS","PLAFON",122]
["32TP","PLAF.LUZ NAVEGACION LAT. AERODINAMICO","PLAFON",74]
["33TP","PLAF. LUZ DE NAVEGACION LAT. BLINDADO CHICO DE LUJO","PLAFON",116]
["34P","PLAF. LUZ DE NAVEGACION LAT. BLINDADO CONCHA","PLAFON",106]
["35P","PLAF.LUZ DE NAVEGACION LAT. GUSANO (MK)","PLAFON",84]
["36P","PLAF.LUZ DE NAVEGACION LAT. GUSANO DE PICO","PLAFON",112]
["37TP","PLAF.LUZ DE NAVEGACION LAT. GUSANO BLINDADO","PLAFON",114]
["38TP","PLAF.LUZ DE NAVEGACION LAT. BLINDADO C-REFL","PLAFON",122]
["39P","PLAF. IMSSA","PLAFON",92]
["40TP","PLAF.LUZ DE NAVEGACION LAT. ONDULADO T-HELLA DOBLE OPT","PLAFON",84]
["41P","PLAF.LUZ DE NAVEGACION LAT. ONDULADO (MK)","PLAFON",84]
["41TP","PLAF.LUZ DE NAVEGACION LAT. ONDULADO","PLAFON",96]
["42TP","PLAF.LUZ DE NAVEGACION LAT. LAMPARITA","PLAFON",74]
["43TP","PLAF.LUZ DE NAVEGACION LAT. LAMPARITA ONDULADO","PLAFON",74]
["44P","PLAF.LUZ DE NAVEGACION LAT. CHALUPA CHICO","PLAFON",62]
["45TP","PLAF.LUZ DE NAVEGACION LAT. FLECHITA","PLAFON",64]
["46EP","PLAF. REFLEX ECO !","PLAFON",106]
["47TP","PLAF. ZEPPELIN FREIGHTLINER, NAVISTAR","PLAFON",316]
["48P","PLAF. ZEPPELIN TORPEDO B-PLAST (MK)","PLAFON",368]
["48TP","PLAF. ZEPPELIN TORPEDO","PLAFON",406]
["49P","PLAF. ZEPPELIN KENWORTH CROM (MK)","PLAFON",650]
["49TP","PLAF. ZEPPELIN KENWORTH CROM","PLAFON",670]
["50TP","PLAF. ZEPPELIN KENWORTH CHICO/CAMION MACK","PLAFON",180]
["51TP","PLAF. TORTUGA GRANDE","PLAFON",106]
["52P","CALAVERA ELIPTICA AYCO 28 LEDS FIJA","PLAFON",788]
["53P","CALAVERA ELIPTICA AYCO 28 LEDS MOV O ESTROBO","PLAFON",788]
["54P","LAT. RECORD PLANO CROM 5 LED (MAK-P)","PLAFON",160]
["55P","PLAF. ZEPPELIN YANQUI BASE PLAST","PLAFON",190]
["55TP","PLAF. ZEPPELIN YANQUI","PLAFON",264]
["56TP","PLAF.LUZ NAVEGACION LAT. FAMSA","PLAFON",64]
["57P","PLAF. RECORD UNIV. NAVEGACION LAT. KENWORTH T2000 (MK)","PLAFON",96]
["57TP","PLAF. RECORD UNIV. NAVEGACION LAT. KENWORTH T2000","PLAFON",104]
["58TP","PLAF. PUNTA DE ZEPPELIN TORPEDO B-PLAST (MK)","PLAFON",138]
["59TP","PLAF. TORTUGA CHICO","PLAFON",130]
["60P","PLAF. SEMAFORO SENCILLO","PLAFON",214]
["61P","PLAF.LUZ NAVEGACION LAT. MERCEDEZ MARCOPOLO  T-BURB","PLAFON",100]
["62TP","REF REDONDO CROM CHICO 2.5","PLAFON",54]
["63TP","PLAF. CHARRO GIGANTE","PLAFON",312]
["64P","PLAF. CHARRO CABEZON","PLAFON",278]
["65TP","PLAF. CHARRO GRANDE","PLAFON",268]
["66TP","PLAF. CHARRO MEDIANO","PLAFON",200]
["67TP","PLAF. CHARRO CHICO REVERSA","PLAFON",164]
["68TP","PLAF. LAMP.DIRECC. PATA L","PLAFON",110]
["69P","PLAF. 4\" SELLADO CON B","PLAFON",126]
["70P","PLAF. REVERSITA","PLAFON",136]
["71TP","LAMP.DIRECC. GIGANTE DIAM 7","PLAFON",368]
["72TP","LAMP.DIRECC. GRANDE PEYMSA DIAM 4 1/2","PLAFON",192]
["73TP","LAMP.DIRECC. MEDIANA 4","PLAFON",158]
["74TP","LAMP.DIRECC. MEDIANA MARGARITA 4","PLAFON",158]
["75TP","LAMP.DIRECC. MEDIANA C-CEJA 4","PLAFON",158]
["76TP","LAMP.DIRECC. CHICA 3","PLAFON",116]
["77P","LAT. DE FREIGHTLINER 4 LEDS SPORT","PLAFON",122]
["78TP","LAMP.DIRECC. FAMSA PINITO","PLAFON",600]
["79CP","LAMP.DIRECC. FAMSA 1 TORNILLO CROM T.","PLAFON",246]
["79CLFP","LAMP.DIRECC. FAMSA 1 TORNILLO CROM T. LEDS FIJO","PLAFON",736]
["79CLMP","LAMP.DIRECC. FAMSA 1 TORNILLO CROM T. LEDS MOV-STRO","PLAFON",768]
["79NP","LAMP.DIRECC. FAMSA 1 TORNILLO NEGRO T.","PLAFON",210]
["80LTP","PLAF. 2\" UNIV.EMBUTIDO SELLADO C-BRIDA  NEGRA","PLAFON",134]
["80TP","PLAF. 2\" UNIV.EMBUTIDO SELLADO C-BRIDA","PLAFON",66]
["80XLP","PLAF. 2\" UNIV.EMBUTIDO SELLADO C-BRIDA  NEGRA-","PLAFON",158]
["81CP","LAMP.DIRECC. FAMSA 2T CROM","PLAFON",316]
["81NP","LAMP.DIRECC. FAMSA 2T NEGRA","PLAFON",222]
["82P","LAMP.DIRECC. CUADRADA CHICA","PLAFON",158]
["83CP","LAMP.DIRECC. RECT DODGE Y FORD CROM","PLAFON",210]
["84NP","LAMP.DIRECC. RECT DODGE Y FORD NEGRA","PLAFON",190]
["85P","PLAF. RECORD UNIV. NAVEGACION LAT. KENWORTH T2000  4LED","PLAFON",122]
["86CP","LAMP.DIRECC. DINA CROM","PLAFON",348]
["86TP","LAMP.DIRECC. DINA CROM","PLAFON",232]
["87TP","PLAF. ARILLO EMBUTIDO 4","PLAFON",174]
["88TP","PLAF. EMBUTIDO C/BRIDA NEGRA/GRIS 8 LEDS FIJO","PLAFON",284]
["89TP","PLAF. EMBUTIDO C/BRIDA NEGRA/GRIS 8 LEDS MOV/ESTROBO","PLAFON",306]
["90EP","PLAF. LUZ INTERIOR REATSA","PLAFON",142]
["90TP","PLAF. LUZ INTERIOR REATSA","PLAFON",158]
["91P","PLAF. RECTANGULAR MANTEQUILLERO","PLAFON",310]
["92TP","PLAF. CUADRITO 2","PLAFON",214]
["93TP","LUZ INTERIOR MINIBUS/MICROBUS URBANO","PLAFON",96]
["94TP","LUZ DE PLACA UNIVERSAL 1.5","PLAFON",152]
["95TP","PLAF. LAT. MINI LEDS 2.5","PLAFON",144]
["96P","LAMPARITA TIPO CASITA 3 LEDS","PLAFON",138]
["97TP","PLAF. LAT. TIPO 1/4 VW SEDAN","PLAFON",84]
["98FXP","PLAF. 3\"EMBUTIDO AHULADO CH","PLAFON",106]
["98LTP","PLAF. 3\"EMBUTIDO AHULADO C","PLAFON",158]
["98LFXP","PLAF. 3\"EMBUTIDO AHULA","PLAFON",210]
["98STP","PLAF. 3\"EMBUTIDO AHULADO","PLAFON",106]
["98SFXP","PLAF. 3\"EMBUTIDO AHU","PLAFON",158]
["98TP","PLAF. 3\"EMBUTIDO AHULADO","PLAFON",54]
["99P","PLAF. TIPO AMBULANCIA/BUS ESCOLAR  7","PLAFON",420]
["100P","PLAF. INTERIOR CUADRADO","PLAFON",182]
["101TP","PLAF. LAT. NAVEGACION TIPO PIRAMIDE","PLAFON",80]
["102TP","PLAF. OVALADO BRIDA CROM. TIPO TUNEL","PLAFON",158]
["103TP","PLAF. LAT. REFL. TIPO MASA 4.5\"\"","PLAFON",134]
["104TP","PLAF. OVALADO EMBUTIDO AHULADO LEDS C-FLECHA","PLAFON",520]
["105FXP","PLAF. 2\" EMBUTIDO HULE M","PLAFON",96]
["105LTP","PLAF. 2\" EMBUTIDO HULE","PLAFON",210]
["105LFXP","PLAF. 2\" EMBUTIDO HUL","PLAFON",264]
["105STP","PLAF. 2\" EMBUTIDO HUL","PLAFON",158]
["105SFXP","PLAF. 2\" EMBUTIDO HULE","PLAFON",190]
["105TP","PLAF. 2\" EMBUTIDO HULE","PLAFON",74]
["106FTP","PLAF. OVALADO EMBUTIDO AHULADO LEDS FIJO","PLAFON",316]
["106TP","PLAF. OVALADO EMBUTIDO AHULADO LEDS MOV","PLAFON",316]
["107P","PLAF. LUZ DE POSICION T-HELLA (MK)","PLAFON",82]
["107TP","PLAF. LUZ DE POSICION T-HELLA","PLAFON",100]
["108P","PLAF. BLINDADO T-HELLA OPTICA COMP","PLAFON",322]
["109STP","PLAF. OVALADO EMBUTIDO AHULADO SELLADO","PLAFON",146]
["109TP","PLAF. OVALADO EMBUTIDO AHULADO","PLAFON",106]
["109XP","PLAF. OVALADO EMBUTIDO AHULADO SELLADO FX","PLAFON",174]
["110P","PLAF. RANGER ESTACAS BICOLOR","PLAFON",404]
["111P","PLAF. REDONDO AHULADO 4\"","PLAFON",126]
["111FXP","PLAF. REDONDO AHULADO 4\" C-","PLAFON",222]
["111TP","PLAF. REDONDO AHULADO 4\"","PLAFON",126]
["112P","PLAF. FAMSA RECTANGULAR DE SALPICADERA TRACTOCAMION","PLAFON",210]
["112FXP","PLAF. FAMSA RECTANGULAR DE SALPICADERA TRACTOCAMION FX","PLAFON",310]
["113FXP","PLAF. OVALADO EMBUTIDO AHULADO BOLA FX","PLAFON",468]
["113TP","PLAF. OVALADO EMBUTIDO AHULADO BOLA","PLAFON",394]
["114FXP","PLAF. OVALADO EMBUTIDO AHULADO PIRAMIDE FX","PLAFON",468]
["114TP","PLAF. OVALADO EMBUTIDO AHULADO PIRAMIDE","PLAFON",314]
["115P","PLAF.  UNIVERSAL C/MICA CORVETTE","PLAFON",274]
["116P","PLAF. RECT EMB BASE PLASTICA CROM ECO","PLAFON",110]
["116TP","PLAF. RECT EMB LAMINA CROM Y NEGRO","PLAFON",168]
["117TP","PLAF. EMB REDONDO HULE GDE TUNEL 4","PLAFON",112]
["118TP","PLAF. EMB REDONDO MEDIANO 2.5","PLAFON",112]
["119TP","PLAF. EMB REDONDO MINI 1 3/4","PLAFON",106]
["120TP","PLAF. BLINDADO GRANDE","PLAFON",368]
["121FXP","PLAF. LUZ POSICION MINI TIPO TRIANGULO","PLAFON",124]
["122FXP","PLAF. LUZ POSICION MINI TIPO CUADRADO","PLAFON",130]
["123FXP","PLAF. LAT. TIPO MUERTITO F/INTER","PLAFON",106]
["123LTP","PLAF. LAT. TIPO MUERTITO SELLADO 3 LEDS","PLAFON",116]
["123LFXP","PLAF. LAT. TIPO MUERTITO SELLADO 3 LEDS FX","PLAFON",316]
["123ORP","PLAF. LAT. TIPO MUERTITO ORIG SELLADO F/INTER FX","PLAFON",274]
["123TP","PLAF. LAT. TIPO MUERTITO F/INTER","PLAFON",74]
["124P","PLAF. LAT. 4 LEDS SELLADO PARA DEFENSA KENWORTH","PLAFON",286]
["125FXP","PLAF.LUZ DE NAVEGACION LAT. ONDULADO T-HELLA DOBLE OPT FX","PLAFON",106]
["125TP","PLAF.LUZ DE NAVEGACION LAT. ONDULADO T-HELLA DOBLE OPT","PLAFON",64]
["126TP","PLAF.LUZ DE NAVEGACION LAT. ONDULADO T-HELLA DOBLE OPT 10 LEDS","PLAFON",196]
["126XP","PLAF.LUZ DE NAVEGACION LAT. ONDULADO T-HELLA DOBLE OPT 10 LEDS FX","PLAFON",222]
["127TP","PLAF.LUZ DE NAVEGACION LATERAL UNIVERSAL","PLAFON",46]
["128TP","PLAF. LUZ DE ESTRIBO RECTANGULAR","PLAFON",70]
["129TP","PLAF. LUZ INT RECTANGULAR","PLAFON",116]
["130TP","LUZ DE PLACA OJO DE BUEY","PLAFON",1050]
["131TP","PLAF.LUZ NAVEGACION UNIVERSAL 14CM X 3.5 CM","PLAFON",106]
["132TP","LAT. LUZ POSICION UNIVERSAL AYCO-EUROCAR LEDS","PLAFON",170]
["133LTP","PLAF. MINI BOSCH 3","PLAFON",158]
["133TP","PLAF. MINI BOSCH 3","PLAFON",80]
["134LTP","PLAF. REDONDO TRUCK LINE 2T. LED","PLAFON",158]
["134TP","PLAF. REDONDO TRUCK LINE 2T","PLAFON",80]
["135P","PLAFON SELLADO 4\"PAN","PLAFON",316]
["136P","PLAFON SELLADO 4\" PA","PLAFON",378]
["137P","PLAFON 4\" SELLADO C-BRIDA INTEG","PLAFON",124]
["138TP","PLAF.EMB REDONDO HULE FIJO 4","PLAFON",316]
["139TP","PLAF. EMB REDONDO HULE 4\"\"\"\"","PLAFON",368]
["140P","PLAF.  5 LEDS","PLAFON",210]
["140FXP","PLAF.  5 LEDS","PLAFON",316]
["141FXP","PLAF.-CALAVERA  JP WRANGLER 91-08 LEDS FIJO FX","PLAFON",736]
["141TP","PLAF.-CALAVERA  JP WRANGLER 91-08 LEDS FIJO","PLAFON",420]
["142TP","PLAF. TIPO RECORD  3 LEDS","PLAFON",374]
["143FXP","PLAF.-CALAVERA  JP WRANGLER 91-08 LEDS GIRATORIO-STROBO FX","PLAFON",998]
["143TP","PLAF.-CALAVERA  JP WRANGLER 91-08 LEDS GIRATORIO-STROBO","PLAFON",578]
["144TP","PLAF. B-CROM CIRCULOS 8 LEDS FIJO","PLAFON",316]
["145TP","PLAF. B-CROM CIRCULOS 8 LEDS GIRATORIO","PLAFON",368]
["146TP","PLAF. LAT. OVALADO 3 LEDS 2 TORNILLOS","PLAFON",126]
["147TP","PLAF. EMB. REDONDO PLAST. CROM TUNEL 4","PLAFON",168]
["148TP","PLAF.EMB REDONDO TUNEL CROM 3","PLAFON",126]
["149TP","PLAF. EMB REDONDO TUNEL CROM 2","PLAFON",74]
["150FXP","LAMPARA PARA TOLDO CABINA SELLADA 2354","PLAFON",178]
["151FXP","LAMPARA LAT. SELLADA RAMPA 2312","PLAFON",532]
["152FXP","LAMPARA LAT. SELLADA CON REFL","PLAFON",298]
["153FXP","PLAF. MINI LEDS R-A-C 3-4 PLANO 8061","PLAFON",308]
["154FXP","PLAF. MINI LEDS R.A.CALAVERA  3-4 SOBRESALE 8063","PLAFON",308]
["155P","PLAF. 4\" CONTORNO NEON 30 LED C","PLAFON",946]
["156P","LUZ POSICION LAT. VOLVO 5 LED MULTIVOLTAJE 12-18","PLAFON",340]
["1O","M. 1/4 OPEL 67-68","OPEL",138]
["2O","M.CALAVERA OPEL  67-68","OPEL",578]
["1R","M.CALAVERA RAMBLER 70-76 C-DIV","RAMBLER",480]
["2R","BISEL RAM CON 1/4  80-82","RAMBLER",1592]
["3R","1/4 LAT. DE RAMBLER 72-80  (MK)","RAMBLER",120]
["4R","1/4 LAT. RAM CROM 72-80","RAMBLER",150]
["5R","M.CALAVERA RAMBLER 80-82","RAMBLER",1122]
["6R","CARCAZA DE RAMBLER  80-83","RAMBLER",408]
["7R","1/4 FRONT BISEL RAMBLER 80-82","RAMBLER",276]
["8R","M.CALAVERA  RAMBLER 78-79","RAMBLER",804]
["9R","M.CALAVERA  WAGONER 85-87","RAMBLER",306]
["10R","1/4 LAT. WAGONER Y JEEP  85-87  !","RAMBLER",84]
["11R","1/4 PARRILLA RAMBLER 70-76","RAMBLER",72]
["13R","M. 1/4 WAGONER 79-87  (MK)","RAMBLER",168]
["14R","1/4 LAT. WAGONER CROM L Y R  85-87","RAMBLER",308]
["1RE","M.CALAVERA RENAULT R-18 BIC","RENAULT",396]
["2PRE","CALAVERA R-18 BIC","RENAULT",998]
["3RE","M. 1/4 R-18 CURVO","RENAULT",158]
["4RE","M. 1/4 R-18 RECTO","RENAULT",228]
["5PRE","CALAVERA  R-12 ROUTIER 77-83","RENAULT",1082]
["6RE","M. R-12 ROUTIER 77-83","RENAULT",292]
["7RE","M. 1/4 R-5 R-12Y R-18  75-77","RENAULT",70]
["8PRE","1/4 FRONT.R-5R-12Y R-18 75-77 COMP","RENAULT",250]
["9RE","M.CALAVERA  R-8 BICOLOR Y ROJO 83-85","RENAULT",272]
["10RE","M.CALAVERA  R-8 BICOLOR Y ROJO CROM 83-85","RENAULT",284]
["11RE","M. 1/4 R-8 66-72","RENAULT",84]
["12RE","M.CALAVERA R-12 BIC 72-76","RENAULT",226]
["13RE","MICA 1/4 R-12 AMB 72-75","RENAULT",70]
["14RE","M. 1/4 R-12 AMB Y BIC 72-76","RENAULT",70]
["15PRE","1/4 FRONT. R-12 AMB Y BIC  72-76","RENAULT",322]
["16RE","1/4 PARRILLA R-18 2 LTS 94","RENAULT",726]
["17RE","M.CALAVERA R-5 ROJO Y BIC 75-84","RENAULT",282]
["18RE","M.CALAVERA  R-5 ROJO 75-84","RENAULT",276]
["19PRE","CALAVERA  R-5 COMP BIC 75-84","RENAULT",834]
["20RRE","CALAVERA  R-5 COMP ROJO 75-84","RENAULT",826]
["21RE","M. REVERSA BIC R-5","RENAULT",248]
["22RE","M. REVERSA R-5 NEGRA","RENAULT",248]
["23RE","BISEL R-12 2 FAROS ROUTIER 79-83","RENAULT",488]
["24RE","M.CALAVERA  R-4 F 74-78","RENAULT",400]
["25RE","M.CALAVERA R-4 L 67-74","RENAULT",400]
["26RE","BISEL R-18 2 FAROS 78-83","RENAULT",942]
["27RE","BISEL R-12 1 FARO 74-79","RENAULT",266]
["28RE","PARRILLA R-12 74-83","RENAULT",720]
["29RE","FRASCOS ANTICONGELANTES R-8 PLAST (MK)","RENAULT",194]
["30RE","BISEL R-5 NEGRO 75-84","RENAULT",704]
["31RE","M-CALAVERA R-18 GUAYIN","RENAULT",1318]
["32RE","TAPON R-12 (PIEZA)","RENAULT",458]
["33RE","M. ALLIANCE   80-82","RENAULT",748]
["34RE","1/4 FRONT. DE ALLIANCE  80-87","RENAULT",426]
["35RE","P-LUZ PLACA COMP R-5 NEGRA","RENAULT",470]
["36RE","P-LUZ PLACA R5-COMP COMB","RENAULT",690]
["37RE","TAPON ALLIANCE (PZA)","RENAULT",348]
["38RE","EMBLEMA PARRILLA RENAULT","RENAULT",118]
["39RE","1/4 LAT. RN TRAFIC 07-14-KANGOO 04-16-CLIO 02-10 DUSTER 13-16","RENAULT",120]
["40RE","BISEL R-18 1 UNIDAD 78-82","RENAULT",1026]
["41RE","M.CALAVERA R-12 GUAYIN 73-79","RENAULT",310]
["42PRE","CALAVERA  R-12 GUAYIN  73-79","RENAULT",956]
["43RE","CALAVERA  CLIO 02-09","RENAULT",936]
["1U","MICA PLAF. HEXAGONAL","UNIVERSAL",58]
["2U","MICA PLAF. CHARRO CHICO","UNIVERSAL",46]
["3U","MICA PLAF. TORTUGUITA  (MK)","UNIVERSAL",32]
["4TU","MICA  PLAF. CEJA","UNIVERSAL",48]
["5U","MICA  UNIVERSAL 2 TORNILLOS","UNIVERSAL",58]
["6U","MICA  REDONDA 3 TORNILLOS","UNIVERSAL",36]
["7U","MICA  CARROCERIA IMSSA","UNIVERSAL",30]
["8U","MICA  CARROCERIA IMSSA REDONDA","UNIVERSAL",32]
["9U","MICA  PLAF. LAT. OVALADO (121P)","UNIVERSAL",36]
["10U","MICA  LAMP.DIRECC.","UNIVERSAL",48]
["11U","MICA  PLAF. DELFIN CHICO","UNIVERSAL",32]
["12U","MICA  PLAF. EMBUTIDO ARILLO COLOR","UNIVERSAL",38]
["13U","MICA  PLAF. SOMEX REDONDO","UNIVERSAL",66]
["14U","MICA  PLAF. ARILLO CHICO","UNIVERSAL",36]
["15U","MICA  PLAF. ARILLO GRANDE","UNIVERSAL",42]
["16U","MICA  PLAF. TORTUGA GDE","UNIVERSAL",88]
["17U","MICA  PLAF. PUNTA DE ZEPPELIN  (MK)","UNIVERSAL",58]
["18U","MICA  PLAF. CHARRO GIGANTE","UNIVERSAL",68]
["19U","MICA  PLAF. LAMP.DIRECALAVERA  MEDIANA  (MK)","UNIVERSAL",24]
["20U","MICA  PLAF. LAMP.DIRECALAVERA  CHICA","UNIVERSAL",30]
["21U","MICA  PLAF. RASPADO","UNIVERSAL",36]
["22U","MICA  PLAF. CAPRE  (MK)","UNIVERSAL",32]
["23U","MICA  PLAF. ZEPPELIN ROSCA GDE","UNIVERSAL",98]
["24U","MICA  PLAF. PIRAMIDE","UNIVERSAL",40]
["25U","MICA  PLAF. BLINDADO","UNIVERSAL",32]
["26U","MICA  PARA PLAF. \"\"\"\"","UNIVERSAL",62]
["27U","MICA  PLAF. LUZ INTERIOR  (MK)","UNIVERSAL",24]
["28U","MICA  PLAF. LAMPARITA 80-86","UNIVERSAL",20]
["29U","MICA  PLAF. LAMPARITA T-CHALUPA","UNIVERSAL",32]
["30U","MICA  PLAF. DOBLE OPTICA  (MK)","UNIVERSAL",32]
["31U","MICA  PLAF T-HELLA OND PRESION  (MK)","UNIVERSAL",32]
["32U","MICA  PLAF T-HELLA OND 2 TORNILLOS  (MK)","UNIVERSAL",32]
["33U","MICA  PLAF. REC C-REF LARGO  (MK)","UNIVERSAL",36]
["34U","MICA  PARA PLAF. *116P* (MK)","UNIVERSAL",58]
["35TU","MICA  PARA PLAF. *120P*","UNIVERSAL",76]
["36U","MICA  PLAF. BOSCH  (MK)","UNIVERSAL",36]
["37U","MICA  PLAF. DELFIN GDE","UNIVERSAL",64]
["38U","MICA PLAF ZEPPELIN KENWORTH   (MK)","UNIVERSAL",58]
["39U","MICA  PLAF. GUSANO  (MK)","UNIVERSAL",42]
["40U","MICA  PLAF. BLINDADO C-R","UNIVERSAL",32]
["41U","MICA  PLAF. EMB REDONDO 3 AUG OJITO","UNIVERSAL",36]
["42U","MICA  PLAF. MINI BOSCH 2 TORNILLOS","UNIVERSAL",58]
["43U","Z\" PARA LAMPA","UNIVERSAL",64]
["44U","MICA  PLAF. ZEPPELIN YANQUI","UNIVERSAL",40]
["45U","REFLE REDONDO C-AG CROM Y B-BCA  (MK)","UNIVERSAL",58]
["45CU","REFLE REDONDO C-AUG CROM   (MK)","UNIVERSAL",68]
["46U","MICA  PLAF. FLECHITA","UNIVERSAL",40]
["47U","MICA  PLAF. CUADRITO  (MK)","UNIVERSAL",30]
["48U","MICA  PLAF. TIPO RECORD (MK)","UNIVERSAL",42]
["49U","M, DIREC CUADRADA GDE RECORD","UNIVERSAL",76]
["50U","CINTURON DE SEGURIDAD 3 PUNTAS","UNIVERSAL",714]
["51U","MICA  PLAF. AERODINAMICO","UNIVERSAL",42]
["52U","MICA  PLAF.LUZ INT REATSA  (MK)","UNIVERSAL",32]
["53U","REFL RECT 2 AUG  (MK)","UNIVERSAL",54]
["54U","MICA  RECT PLAF. REFLEX ECO !","UNIVERSAL",62]
["55U","MICA  CHARRO MINIATURA","UNIVERSAL",38]
["56U","MICA  MINIATURA SEMAFOROS","UNIVERSAL",32]
["57U","REFL LAMINA","UNIVERSAL",152]
["57XU","REFL LAMINA MICA  ORIG.","UNIVERSAL",218]
["58U","BISEL UNIV CHICO","UNIVERSAL",68]
["59U","MICA  PLAF. GUSANO","UNIVERSAL",158]
["60U","MICA  PLAF. BLINDADO DE LUJO","UNIVERSAL",48]
["61U","MICA  PLAF. ESTRIBO GRANDE","UNIVERSAL",54]
["62U","MICA  P- PLAF. TRUCK-LINE2T (134P)","UNIVERSAL",32]
["63U","MICA  PLAF. T-HELLA 2 TORNILLOS  (MK)","UNIVERSAL",32]
["64U","MICA  PLAF. REVERSERO","UNIVERSAL",52]
["65U","MICA  PLAF. HUEVITO","UNIVERSAL",88]
["66U","MICA  PLAF. ZEPPELIN FRAYLING CHICO","UNIVERSAL",132]
["67U","MICA  PLAF. MANTEQUILLERO","UNIVERSAL",128]
["68U","MICA  PLAF. HUEVITO CHICO","UNIVERSAL",52]
["69U","MICA  PLAF. LAT. PIRAMIDE CHICA","UNIVERSAL",42]
["70U","MICA  PLAF. DELFIN ALTO","UNIVERSAL",228]
["71U","MICA  PLAF. LAT. LAMP ONDULADA","UNIVERSAL",40]
["72U","MICA  PLAF. T-HELLA OVAL. LISO PRESION (MK)","UNIVERSAL",30]
["72TU","MICA  PLAF. T-HELLA OVAL. LISO PRES","UNIVERSAL",56]
["73U","MICA  PLAF. TIPO AMBULANCIA","UNIVERSAL",224]
["74TU","ARILLO MINI P-VISERITA","UNIVERSAL",16]
["75TU","ARILLO GRANDE PARA PLAF.","UNIVERSAL",24]
["1VW","CALAVERA  VW GOLF 88-92","VOLKSWAGEN",788]
["2VW","1/4 FASCIA VW  GOLF-JETTA 88-92  (MK)","VOLKSWAGEN",90]
["2SVW","1/4 FASCIA VW  GOLF-JETTA 88-92 SPORT","VOLKSWAGEN",174]
["3VW","CALAVERA  VW JETTA 88-92","VOLKSWAGEN",788]
["4VW","1/4 LAT. VW GOLF 93-99-JETTA 93-98  (MK)","VOLKSWAGEN",124]
["4CVW","1/4 LAT. VW GOLF 93-99-JETTA 93-98  (MK)","VOLKSWAGEN",124]
["4SVW","1/4 LAT. VW GOLF 93-99-JETTA 93-98 SPORT","VOLKSWAGEN",270]
["5VW","1/4  FRONT. VW GOLF-JETTA 91-92 F.ANCHA","VOLKSWAGEN",72]
["5SVW","1/4  FRONT. VW GOLF-JETTA 91-92 F.ANCHA SPORT","VOLKSWAGEN",148]
["6VW","BASE CALAVERA VW 1600 EUROPEA 79-04 (MK)","VOLKSWAGEN",238]
["6CVW","BASE CALAVERA VW 1600 EUROPEA 79-04 CROM (MK)","VOLKSWAGEN",430]
["7VW","CALAVERA VW 1600 EUROPEA 79-04  BIC (MK)","VOLKSWAGEN",526]
["8VW","M.CALAVERA VW 1600 EUROPEA 79-04  BIC (MK)","VOLKSWAGEN",216]
["8CVW","M.CALAVERA VW 1600 EUROPEA 79-04  CRIS (MK)","VOLKSWAGEN",216]
["9VW","1/4 FRONT. VW 1600 DEF 79-04  (MK)","VOLKSWAGEN",120]
["9LVW","1/4 FRONT. VW 1600 DEF 79-04 SPORT LEDS","VOLKSWAGEN",284]
["10VW","M. 1/4 VW 1600 FASCIA 79-04 (MK)","VOLKSWAGEN",32]
["10SVW","M. 1/4 VW 1600 FASCIA SPORT 79-04","VOLKSWAGEN",48]
["11VW","M.CALAVERA VW 1600 C-LADO 74-78","VOLKSWAGEN",368]
["11PVW","CALAVERA V.W 1600 C-LADO 74-78","VOLKSWAGEN",736]
["12VW","M.CALAVERA VW 1600 EUROPEA 79-04  HUMO STOP ROJO (MK)","VOLKSWAGEN",216]
["13VW","MICA CALAV. 1600 EUROPEA MOD 79-04 HUM/ROJ/CRI (MK)","VOLKSWAGEN",216]
["15VW","PARRILLA VW ATLANTIC 81-87","VOLKSWAGEN",476]
["15CVW","PARRILLA VW ATLANTIC 81-87 CROM","VOLKSWAGEN",730]
["16VW","CALAVERA  VW ATLANTIC 81-87 BIC  (MK)","VOLKSWAGEN",684]
["16CVW","CALAVERA VW ATLANTIC 81-87 CRIST  (MK)","VOLKSWAGEN",684]
["17VW","1/4 FRONT. VW ATLANTIC 81-87 (MK)","VOLKSWAGEN",198]
["18VW","M. 1/4 FRONT. VW ATLANTIC 81-87  (MK)","VOLKSWAGEN",58]
["19VW","1/4 FRONT. VW CARIBE 77-80","VOLKSWAGEN",218]
["20VW","1/4 PUNTA VW ATLANTIC 81-87","VOLKSWAGEN",134]
["21VW","REFL LAT. VW CARIBE 77-80   (MK)","VOLKSWAGEN",70]
["22VW","M. 1/4 FRONT. VW CARIBE 77-80  (MK)","VOLKSWAGEN",50]
["23VW","CALAVERA VW CARIBE LARGA 81-87","VOLKSWAGEN",736]
["24VW","CALAVERA  VW CARIBE CORTA 77-80","VOLKSWAGEN",736]
["25VW","1/4 PUNTA VW CARIBE SALP. 81-87","VOLKSWAGEN",132]
["25SVW","1/4 PUNTA VW CARIBE SALP. SPORT 81-87","VOLKSWAGEN",260]
["26VW","BASE CALAVERA  VW BRASILIA 74-78","VOLKSWAGEN",526]
["27VW","M. CALAV LAMP.DIRECC. VW BRASILIA 74-78","VOLKSWAGEN",250]
["28VW","CALAVERA  VW BRASILIA LISA  74-78","VOLKSWAGEN",1708]
["29VW","CALAVERA  VW BRASILIA 80","VOLKSWAGEN",694]
["30VW","REFL CALAVERA  VW BRASILIA 81 (MK)","VOLKSWAGEN",168]
["31VW","M. 1/4  FRONT. VW BRASILIA 79-81","VOLKSWAGEN",88]
["32VW","1/4  FRONT. VW BRASILIA 79-81","VOLKSWAGEN",158]
["33VW","CALV. VW VENTO 15-19","VOLKSWAGEN",1470]
["34VW","CALV VW VENTO 20-22","VOLKSWAGEN",1890]
["35VW","M. STOP CALAVERA  VW BRASILIA 4 GAJOS  74-78","VOLKSWAGEN",294]
["36VW","M. STOP CALAVERA  VW BRASILIA LISA  74-78","VOLKSWAGEN",396]
["37VW","M. DIREC CALAVERA  VW BRASILIA LISA  74-78","VOLKSWAGEN",264]
["38VW","M. 1/4 FRONT. VW BRASILIA 74-78","VOLKSWAGEN",88]
["39VW","1/4 FRONT. VW BRASILIA 74-78","VOLKSWAGEN",286]
["40VW","M. CURVA VW BRASILIA 5 GAJOS 74-78","VOLKSWAGEN",276]
["41VW","M. PLANA VW BRASILIA 5 GAJOS 74-78","VOLKSWAGEN",276]
["42VW","CALAVERA  VW BRASILIA 5 GAJOS 74-78","VOLKSWAGEN",1058]
["43VW","CALAVERA  VW COMBI  72-05  (MK)","VOLKSWAGEN",416]
["43MVW","CALAVERA  VW COMBI . 72-05 METAL. (MK)","VOLKSWAGEN",416]
["44VW","M.CALAVERA VW COMBI 72-05 BICOLOR  (MK)","VOLKSWAGEN",180]
["44CVW","M.CALAVERA VW COMBI 72-05 CRISTAL  (MK)","VOLKSWAGEN",180]
["44HVW","M.CALAVERA VW COMBI  72-05 HUMO  (MK)","VOLKSWAGEN",180]
["45VW","1/4 FRONT. VW COMBI 72-05  !","VOLKSWAGEN",238]
["46VW","M.CALAVERA VW COMBI 3 REFLEJ. 72-05 (MK)","VOLKSWAGEN",112]
["47VW","BASE DE VW COMBI 72-05 (MK)","VOLKSWAGEN",226]
["48VW","M. 1/4 FRONT. VW COMBI 72-05  !","VOLKSWAGEN",58]
["49VW","CALAVERA  COMBI RAYADA SPORT 72-05","VOLKSWAGEN",546]
["50VW","M. 1/4 SALP VW 1200  60-73","VOLKSWAGEN",112]
["51VW","M.CALAVERA VW 1200 60-68","VOLKSWAGEN",140]
["52VW","M.CALAVERA VW 1500 70-73","VOLKSWAGEN",264]
["53VW","1/4 PUNTA VW DERBY 98-01","VOLKSWAGEN",478]
["54VW","M. 1/4 SALP VW 1500 74-78","VOLKSWAGEN",280]
["55VW","M.CALAVERA VW 1200 60-68 BIC","VOLKSWAGEN",220]
["56VW","M.CALAVERA VW 1500 69-73 BIC","VOLKSWAGEN",326]
["57VW","1/4 REFL FRONT. VW GOLF 93-99-JETTA 93-98 INTERIOR","VOLKSWAGEN",266]
["58VW","1/4 FRONT. VW CORSAR SEDAN-VARIANT 84-88","VOLKSWAGEN",328]
["59VW","M. 1/4 FRONT. VW CORSAR SEDAN-VARIANT 84-89","VOLKSWAGEN",180]
["60VW","BISEL VW BRASILIA 74-81 (MK)","VOLKSWAGEN",264]
["61VW","1/4 REFL CENTRAL VW GOLF-JETTA 93-98 CABRIO","VOLKSWAGEN",304]
["62VW","REJILLA ADORNO CALAVERA  VW 1600 JGO","VOLKSWAGEN",280]
["63IPVW","CALAVERA  VW DERBY ROJ-CRI 01-09 IP DP","VOLKSWAGEN",2400]
["64VW","BISEL VW ATLANTIC 81-87 NEGRO (MK)","VOLKSWAGEN",274]
["64CVW","BISEL VW ATLANTIC 81-87 CROM (MK)","VOLKSWAGEN",300]
["65VW","BISEL CALAVERA  VW 1500 CROM PLAST  PÍEZA","VOLKSWAGEN",192]
["66VW","BISEL CALAVERA  VW 1200 PLASTICO CROM PIEZA","VOLKSWAGEN",192]
["67VW","1/4 LAT VW GOLF 99-07-JETTA 99-13-PASSAT 01-05(MK)","VOLKSWAGEN",148]
["68LVW","1/4 LAT VW GOLF 99-07- JETTA 99-13-PASSAT 01-05 LEDS","VOLKSWAGEN",614]
["69IPVW","CALAVERA  INT VW JETTA  93-98  IP DP","VOLKSWAGEN",1600]
["70VW","CALAVERA  EXT VW JETTA  93-98  BIC","VOLKSWAGEN",1244]
["70HVW","CALAVERA  EXT VW JETTA  93-98  HUM","VOLKSWAGEN",1244]
["71VW","BISEL VW CARIBE 81-87 (MK)","VOLKSWAGEN",96]
["72VW","BISEL FARO GRANDE VW CARIBE ECO 78-79","VOLKSWAGEN",374]
["73IPVW","CALAV VW JETTA  08-14 INT IP DP","VOLKSWAGEN",2400]
["74IPVW","CALAV VW JETTA  08-14 EXT IP DP","VOLKSWAGEN",4400]
["75VW","1/4 LAT. VENTO 15-16-AMAROK 10-16-TRANSPORTER 10-16 (MK)","VOLKSWAGEN",148]
["76VW","1/4 LAT SEAT CORDOBA 03-IBIZA 03-12-LEON-07-13 BIC (MK)","VOLKSWAGEN",148]
["77VW","1/4 FRONT. VW GOLF 93-99-JETTA 93-98  EXT MK","VOLKSWAGEN",398]
["78VW","1/4 LAT. VW JETTA 99-07","VOLKSWAGEN",210]
["79VW","1/4 LAT. VW JETTA SPORT 99-07","VOLKSWAGEN",252]
["80VW","PARRILLA TOMA DE AIRE VW COMBI 72-05","VOLKSWAGEN",558]
["81IPVW","CALAVERA  VW GOL 08-12 DER S-FOCO 5 PTAS IP DP","VOLKSWAGEN",2200]
["82VW","CALAVERA VW JETTAA IV SPORT 99-07","VOLKSWAGEN",2148]
["83VW","CALAVERA  VW JETTAA IV 99-07","VOLKSWAGEN",1470]
["84VW","CALAVERA  VW SEDAN T-BEETLE 74-04 CRIST","VOLKSWAGEN",640]
["85VW","CALAVERA  VW SEDAN T-BEETLE 74-04","VOLKSWAGEN",458]
["86LCVW","1/4 LAT VW SEAT SECUENCIAL LED CRIST","VOLKSWAGEN",788]
["86LHVW","1/4 LAT VW SEAT SECUENCIAL LED HUM","VOLKSWAGEN",788]
["87TVW","M.CALAVERA VW SEDAN T-BEETLE 74-04","VOLKSWAGEN",204]
["88IPVW","CALAVERA VW POINTER 06-09 IP OPT","VOLKSWAGEN",1300]
["89VW","1/4 LAT VW DERBY 97-05  !","VOLKSWAGEN",182]
["90VW","1/4 LAT. VW GOLF 00-07-JETTA 99-07 !","VOLKSWAGEN",182]
["91VW","PARRILLA VW CARIBE 81-87","VOLKSWAGEN",1042]
["92IPVW","CALAVERA  VW GOLF  A3 93-98 IP DP","VOLKSWAGEN",2200]
["93VW","BISEL VW COMBI 77-98-SEDAN 1600 74-03 CROM (JGO)","VOLKSWAGEN",472]
["94IPVW","PARRILLA RADIADOR VW COMBI 1800 88-01 IP DP","VOLKSWAGEN",2000]
["95VW","1/4 PUNTA VW POINTER 95-97 LUJO 97-99 AUSTERO","VOLKSWAGEN",420]
["96VW","NARIZ LUZ PLACA VW SEDAN 1600 73-04","VOLKSWAGEN",316]
["97VW","1/4 FRONT. VW JETTA CLASICO 08-16","VOLKSWAGEN",394]
["98LVW","1/4 FRONT. VW JETTA CLASICO 08-16 LEDS","VOLKSWAGEN",852]
["99VW","BISEL 1/4 VW COMBI  88-01 ---JGO--- (MK)","VOLKSWAGEN",96]
["100VW","1/4 LAT. VW JETTA 88-92","VOLKSWAGEN",264]
["101VW","FASCIA TRASERA COMBI 1800 FIBRA VIDRIO COMP 88-98","VOLKSWAGEN",1738]
["102VW","ALERON TRASERO VW COMBI 1800 88-01","VOLKSWAGEN",832]
["103VW","1/4 PUNTA VW EUROVAN 01-04!","VOLKSWAGEN",642]
["103CVW","1/4 PUNTA VW EUROVAN 01-04!","VOLKSWAGEN",642]
["104VW","CALAVERA  VW CORSAR VARIANT  84-88 (MK)","VOLKSWAGEN",1838]
["105IPVW","CALAVERA VW BORA EXT 06-10 IP OPT","VOLKSWAGEN",2500]
["106VW","CALAVERA  VW EUROVAN 01-04 BIC","VOLKSWAGEN",1340]
["107VW","1/4 LAT. VW BORA 06-14","VOLKSWAGEN",226]
["108IPVW","CALAVERA  VW EUROVAN 05-07 IP DP","VOLKSWAGEN",2500]
["109VW","CALAVERA  VW SEDAN 1600 SPORT","VOLKSWAGEN",578]
["110VW","STOP FASCIA TRASERA EUROVAN  01-07","VOLKSWAGEN",250]
["111VW","CALAVERA  CARIBE CORTA SPORT  77-80","VOLKSWAGEN",904]
["112VW","CALAVERA  VW POINTER 00-05","VOLKSWAGEN",1008]
["113IPVW","CALAVERA  VW POINTER VAGONETA 00-05 IP OPT","VOLKSWAGEN",2200]
["115IPVW","CALAVERA  VW POINTER 95-98 IP","VOLKSWAGEN",1900]
["116VW","CALAVERA  VW SEDAN SPORT C-REFL 74-04","VOLKSWAGEN",818]
["116LVW","CALAVERA  VW SEDAN SPORT C-REFL 23 LEDS 74-05","VOLKSWAGEN",2220]
["116LXVW","CALAVERA  VW SEDAN SPORT C-REFL 32 LEDS 74-05 HALOGENO","VOLKSWAGEN",2306]
["117VW","CALAVERA  GOLF A-2 TRANSP 87-92","VOLKSWAGEN",1208]
["118VW","1/4 COMP. GOLF JETTA A-3 93-99","VOLKSWAGEN",630]
["119VW","CALAVERA VW CARIBE LARGA 81-87 SPORT","VOLKSWAGEN",946]
["120IPVW","PARRILLA JETTA A2 87-92 IP OPT","VOLKSWAGEN",1397]
["121VW","PEDAL VW SEDAN PARA ACELERADOR","VOLKSWAGEN",100]
["122VW","FASCIA DELANT. VW COMBI 1800  FV COMP 88-98","VOLKSWAGEN",1738]
["123IPVW","PARRILLA VW POINTER 00-05 COMP IP SIN EMBLEMA IP DP","VOLKSWAGEN",600]
["124VW","TAPON CRO. RHIN TIPO BOLA SEDAN C/LOGO VW 73-04","VOLKSWAGEN",704]
["125VW","TAPON CRO. RHIN TIPO BOLA SEDAN LISO 73-04","VOLKSWAGEN",704]
["126VW","TAPON CRO. RHIN TIPO BOLA SEDAN C/LOGO VW 50-72","VOLKSWAGEN",810]
["127VW","TAPON CRO. RHIN TIPO BOLA SEDAN LISO  50-72","VOLKSWAGEN",810]
["1PE","ESPEJO TSURU II 4 PTS 88-91","ESPEJOS",418]
["2PE","ESPEJO TSURU III 92-14","ESPEJOS",374]
["3PE","ESPEJO PLATINA 02-10","ESPEJOS",618]
["4PE","ESPEJO TOPAZ 88-94","ESPEJOS",466]
["5PE","ESPEJO CHEVY 1 94-08","ESPEJOS",410]
["6PE","ESP CELEBRITY CENTURY Y CUT CROM 86-96","ESPEJOS",666]
["7PE","ESP CELB CENTURY Y CUTLASS NEGRO 86-96","ESPEJOS",490]
["8PE","ESPEJO CHEVY C2 MEC+TEX IZQ 94-08","ESPEJOS",736]
["9PE","LUNA ESPEJO CHEVY C-1 CROM LYR ORIG","ESPEJOS",686]
["10PE","LUNA ESP POINTER GOLF JETTA A-4 CROM S-CALEF","ESPEJOS",444]
["11PE","LUNA ESPEJO CHEVY C-2","ESPEJOS",316]
["12PE","ESPEJO CV CHEVY C3 09-12 C/CONTROL CORRUGADO NEGRO C/ADAPTADOR P/94-08","ESPEJOS",2122]
["13PE","ESPEJO VW POINTER 00-09 4 PUERTAS C/CONTROL P/PINTAR","ESPEJOS",1560]
["14PE","ESPEJO CORSA 02-08/TORNADO 04-11 C/CONTROL P/PINTAR","ESPEJOS",2454]
["15PE","ESPEJO NS URVAN 02-13 MANUAL NEGRO","ESPEJOS",1110]
["16PE","ESPEJO VW POINTER 00-09 2 PUERTAS C/CONTROL P/PINTAR","ESPEJOS",2878]
["17PE","LUNA AVEO 07-16","ESPEJOS",688]
["18PE","LUNA SONIC 12-UP","ESPEJOS",684]
["19PE","LUNA AVEO 17-UP","ESPEJOS",684]
["20PE","LUNA SENTRA 13-UP","ESPEJOS",684]
["21PE","LUNA MARCH IZQ 12-17 Y VERSA 12-15","ESPEJOS",630]
["22PE","LUNA JETTA BICENTENARIO+CALEF IZQ 10-UP","ESPEJOS",684]
["23PE","LUNA VERSA 15-17","ESPEJOS",684]
["1TY ","STOP CABINA TOYOTA TACOMA MODELOS 05-15","TOYOTA",1838]
["2TY ","CALV. TOYOTA HILUX PICKUP 16-23","TOYOTA",1155]
["1CHEM","EMB. PARRILLA CHEVY C-2 E001 12CM X 12CM 04-07","EMBLEMA",302]
["1CEM","LETRAS SPIRIT (1636)","EMBLEMA",144]
["1FEM","OVALO FORD LOBO TRASERO 02-06 (1807)","EMBLEMA",490]
["1HEM","LETRAS CIVIC E-042 (MK)","EMBLEMA",174]
["1KEM","LETRERO KIA RIO 2013-2020","EMBLEMA",180]
["1NEM","EMB. LETRAS TSURU E-021 (MK)","EMBLEMA",118]
["1REEM","LETRERO TRAS RENAULT MEGANE 05-15","EMBLEMA",208]
["1TYEM","LETRERO TRASERO Y LATERAL TY HILUX 05-13","EMBLEMA",250]
["1UEM","ESCUDO HARLEY (1826)","EMBLEMA",298]
["1VWEM","EMB. PARRILLA POINTER 1999  E-027","EMBLEMA",158]
["1MGEM","JGO CENTRO RIN T/MG 56 mm CROMO","EMBLEMA",714]
["2CHEM","EMB. DE PARRILLA CHEVY C-1 E002 7.5X7.5 94-03","EMBLEMA",280]
["2CEM","EMB. STRATUS 95/00 (1595)","EMBLEMA",144]
["2FEM","ESCUDO HARLEY DAVIDSON LOBO S/C (1830)","EMBLEMA",442]
["2HEM","EMB. LOGOTIPO HONDA CHICO (1737)","EMBLEMA",168]
["2KEM","LETRERO KIA FORTE 2013-2020(MK)","EMBLEMA",204]
["2NEM","EMB. LETRAS SENTRA 2000-2004 E-016","EMBLEMA",164]
["2TYEM","LETRERO TRASERO TY AVANZA 12-17(MK)","EMBLEMA",298]
["2UEM","EMB. ADORNO CAR'S GRANDE (2495)","EMBLEMA",270]
["2VWEM","EMB. VW COMBI 1800 GOLF Y JETTA (MK)","EMBLEMA",130]
["2MGEM","EMBLEMA PARRILLA MG Zs 2020-UP NEGRO/CROMO","EMBLEMA",830]
["3CHEM","EMB. PARRILLA TORNADO 04-07  Y CORSA 03-08 E-026 10CM X10CM","EMBLEMA",182]
["3CEM","EMB. NEON 2000-03 (1589)","EMBLEMA",152]
["3FEM","LETRAS TOPAZ (1943)","EMBLEMA",130]
["3HEM","EMB. LOGOTIPO HONDA MEDIANO (1738)","EMBLEMA",162]
["3KEM","EMB. FRONTAL KIA SPORTAGE, SOUL E129","EMBLEMA",536]
["3NEM","EMB. COFRE D-21 97-04   E005","EMBLEMA",138]
["3TYEM","LETRERO TRASERO TY YARIS 12-19","EMBLEMA",204]
["3UEM","LETRERO UNIVERSAL \"\"FR\"\"  SEAT-VW-TOYOTA-NI","EMBLEMA",98]
["3VWEM","EMB. PARRILLA POINTER Y LUPO 06-08 CROSSFOX 07-15 E-032","EMBLEMA",194]
["3MGEM","EMBLEMA CAJUELA MG GT 22-23 CROMADO","EMBLEMA",252]
["4CHEM","LETRERO CHEVY E-028 2.5CM X 15.5CM","EMBLEMA",158]
["4CEM","EMB. STRATUS 2004-06 (1599)","EMBLEMA",314]
["4FEM","LETRAS LOBO 2009-10 1.5 X 7.5\"\" (181","EMBLEMA",334]
["4HEM","EMB. LOGOTIPO HONDA GRANDE (1739)","EMBLEMA",248]
["4KEM","EMB. FRONTAL KIA FORTE, RIO, NIRO E130","EMBLEMA",508]
["4NEM","EMB. PARRILLA D-21  E006","EMBLEMA",214]
["4TYEM","EMB TOYOTA 7.50 CMS LARGO C/ADHESIVO","EMBLEMA",130]
["4VWEM","EMB. PARRILLA CARIBE","EMBLEMA",104]
["5CHEM","EMB. CHEVY C2S 2007-08 E-029","EMBLEMA",130]
["5CEM","LETRAS SHADOW","EMBLEMA",168]
["5FEM","LETRAS LOBO 2009-10 1 3/4 X 8.5\"\" (181","EMBLEMA",384]
["5KEM","TAPON DE CENTRO DE RHIN KIA JGO ( 4 PZ ) NEGRO E131","EMBLEMA",692]
["5NEM","EMB. TSURU III CAJUELA 04-07  E007","EMBLEMA",138]
["5TYEM","EMB TOYOTA 10.90 CMS LARGO C/ADHESIVO","EMBLEMA",152]
["5VWEM","EMB. TAPA GOLF JETTA (MK)","EMBLEMA",118]
["6CHEM","EMB. TRASERO CHEVY 93-01","EMBLEMA",164]
["6CEM","LETRAS CHRYSLER","EMBLEMA",236]
["6CVWEM","EMB. COFRE SEDAN VW 98 CROMADO (MK)","EMBLEMA",92]
["6FEM","LETRAS LOBO 2002-06 1.5\"\" X 7 3/4 (181","EMBLEMA",254]
["6NEM","EMB. TSURU III PARRILLA 00-03  E008","EMBLEMA",106]
["6NVWEM","EMB. COFRE SEDAN VW 98 NEGRO (MK)","EMBLEMA",86]
["6TYEM","EMB. TOYOTA 11.80 CMS LARGO C/ADHESIVO","EMBLEMA",168]
["7CHEM","LETRAS CAVALIER 1991/94 (1490)","EMBLEMA",156]
["7CEM","EMB. STRATUS 2001-2003","EMBLEMA",362]
["7FEM","LETRAS LOBO 1997-2001 2\"\" X 7 1/4 (181","EMBLEMA",214]
["7NEM","EMB. TSURU III CAJUELA 00-03  E009","EMBLEMA",118]
["7TYEM","EMB. TOYOTA 12.70 CMS LARGO C/ADHESIVO","EMBLEMA",204]
["7VWEM","EMB. DE POINTER PICK UP 1999/01 GDE","EMBLEMA",382]
["8CHEM","LETRAS CAVALIER 1995/00 (1491)","EMBLEMA",156]
["8CEM","LETRAS VOYAGER E-039","EMBLEMA",180]
["8FEM","LETRAS LOBO TRITON 2002-06 2\"\" X 7 3/4 (181","EMBLEMA",298]
["8NEM","EMB. TSURU III PARRILLA 05-07  E010 (MK)","EMBLEMA",114]
["8TYEM","EMB. TOYOTA 15.70 CMS LARGO C/ADHESIVO","EMBLEMA",216]
["8VWEM","EMB. DE POINTER PICK UP 1999/01 CHICO","EMBLEMA",232]
["9CHEM","LETRAS COMFORT 2006-09 (1469)","EMBLEMA",146]
["9CEM","LETRAS GRAND CARAVAN E-040","EMBLEMA",282]
["9FEM","LETRAS RANGER 1992-05 (1844)","EMBLEMA",254]
["9NEM","EMB. TSURU III PARRILLA 2004  E011","EMBLEMA",224]
["9TYEM","EMB. TOYOTA 14.00 CMS LARGO C/ADHESIVO","EMBLEMA",204]
["9VWEM","EMB. LETRAS GTI POINTER Y DERBY E-022","EMBLEMA",138]
["10CHEM","LETRAS CHEVY SWING 1996-2001 (1471)","EMBLEMA",188]
["10CEM","LETRAS SPORT E-041","EMBLEMA",156]
["10FEM","LETRAS GT MUSTANG (1931)","EMBLEMA",152]
["10NEM","EMB. DE SENTRA CAJUELA 96-02  E012","EMBLEMA",130]
["10TYEM","EMB. TOYOTA 16.00 CMS LARGO C/ADHESIVO","EMBLEMA",216]
["10VWEM","EMB. LETRAS GTI POINTER Y DERBY E-022","EMBLEMA",138]
["11CHEM","LETRAS CHEVY 1996/03 (1479)","EMBLEMA",200]
["11CEM","LETRAS TOWN & COUNTRY E-049","EMBLEMA",288]
["11FEM","LETRAS F-150 TRITON V8 (1878)","EMBLEMA",312]
["11NEM","EMB. PARRILLA TSURU III","EMBLEMA",168]
["11TYEM","EMB. TOYOTA 19.00 CMS LARGO C/ADHESIVO","EMBLEMA",334]
["11VWEM","EMB. LETRAS MI POINTER Y DERBY COLORES E-030","EMBLEMA",138]
["12CHEM","LETRAS GMC CHICAS S10 (1400)","EMBLEMA",502]
["12CEM","LETRAS JEEP E-047","EMBLEMA",158]
["12FEM","LETRAS F-250 (1875)","EMBLEMA",232]
["12NEM","EMB. PARRILLA PLATINA 02-10 E-033","EMBLEMA",204]
["12TYEM","EMB. PARRILLA YARIS 15-18 E127","EMBLEMA",480]
["12VWEM","EMB. DE PARRILLA POINTER E-004","EMBLEMA",192]
["13CHEM","CRUZ EMB. CHEV DORADA B/CROM  (1442)","EMBLEMA",502]
["13CEM","LETRERO TRAS DG ATTITUDE 06-11","EMBLEMA",208]
["13NEM","EMB. LETRAS PLATINA 02-10 E-023","EMBLEMA",164]
["13VWEM","EMB. LETRAS VR6  E019","EMBLEMA",130]
["13TYEM","LETRERAS INSERTO TAPA BATEA TRASERA TY TACOMA 16-21","EMBLEMA",560]
["14CHEM","CRUZ EMBL CHEV SUBURBAN /SILV 04/05 (1440)","EMBLEMA",402]
["14CEM","EMB. LETRERO JOURNEY 15-19(MK)","EMBLEMA",298]
["14NEM","LETRAS LATERALES NISSAN P-UP 2031","EMBLEMA",204]
["14VWEM","EMB. LETRAS 2.0 POINTER Y DERBY E-034","EMBLEMA",118]
["14TYEM","EMB PARRILLA TOYOTA HILUX 15-23","EMBLEMA",495]
["15CHEM","CRUZ EMBL CHEV SUB/SILV 1999-03 (1438)","EMBLEMA",378]
["15NEM","LOGOTIPO XTRAIL TRASERO (2020)","EMBLEMA",122]
["15VWEM","EMB. LETRAS JETTA 93-07 E013 (MK)","EMBLEMA",118]
["16CHEM","LETRAS GMC GRANDES","EMBLEMA",546]
["16NEM","EMB. REC EDITION SPECIAL SENTRA 2043","EMBLEMA",130]
["16VWEM","EMB. LETRAS 1.8T  E020","EMBLEMA",130]
["17CHEM","LETRAS CHEVY C-3 E-044","EMBLEMA",324]
["17NEM","EMB. PARRILLA NISSAN PICK UP 2010 D 22","EMBLEMA",266]
["17VWEM","EMB. LETRAS POINTER 00-05  E014","EMBLEMA",158]
["18CHEM","LETRAS CHEYENNE E-045","EMBLEMA",354]
["18NEM","EMB. PARRILLA SENTRA  E-036","EMBLEMA",302]
["18VWEM","EMB. LETRAS GOLF  E015","EMBLEMA",138]
["19CHEM","LETRAS SILVERADO E-046","EMBLEMA",354]
["19NEM","EMB. PARRILLA URVAN 02-06 E-037","EMBLEMA",340]
["19VWEM","EMB. LETRAS POLO  E017","EMBLEMA",138]
["20CHEM","LETRAS SUBURBAN E-050","EMBLEMA",354]
["20NEM","EMB. PARRILLA URVAN 06-10 E-038","EMBLEMA",382]
["20VWEM","EMB. LETRAS LUPO E018","EMBLEMA",138]
["21CHEM","LETRAS CHEVY MONZA MOD. 1996","EMBLEMA",204]
["21NEM","LETRAS X-TRAIL2019","EMBLEMA",276]
["21VWEM","EMB. LETRAS SEAT E024","EMBLEMA",152]
["22CHEM","EMB. LOGO G.M. CUADRADO 1\"\" X 1\"\" C","EMBLEMA",56]
["22NEM","EMB. LETRERO TIIDA","EMBLEMA",158]
["22VWEM","EMB. LETRAS EUROVAN E025","EMBLEMA",158]
["23CHEM","LETRAS MATIZ","EMBLEMA",226]
["23NEM","EMB. PARRILLA TIIDA E054","EMBLEMA",254]
["23VWEM","EMB. BORA 2005-2010 E-031","EMBLEMA",138]
["24CHEM","EMB. TRASERO CHEVY 1996","EMBLEMA",138]
["24NEM","EMB. LETRERO URVAN ESPECIAL E057","EMBLEMA",204]
["24VWEM","EMB. POINTER TRASERO 1997-99 (MK)","EMBLEMA",222]
["25CHEM","EMB. LOGO C-2 TRASERO 04-07","EMBLEMA",254]
["25NEM","EMB. LETRERO VERSA 2012-2020 (MK)","EMBLEMA",138]
["25VWEM","EMB. PARA DERBY 2005-07","EMBLEMA",222]
["26CHEM","EMB. LOGO C-3 TRASERO","EMBLEMA",362]
["26NEM","EMB. LETRERO MARCH 2009-2016 (MK)","EMBLEMA",138]
["26VWEM","EMB. POLO Y JETTA SUBMARCA A-4","EMBLEMA",242]
["27CHEM","LETRERO TRASERO CORSA 99-06","EMBLEMA",118]
["27NEM","EMB. PARRILLA VERSA 12-15 E074","EMBLEMA",316]
["27VWEM","EMB. JETTA TRSERO SUBMARCA A3 7.5cms","EMBLEMA",114]
["28CHEM","EMB. PARRILLA CORSA (1462)","EMBLEMA",174]
["28NEM","EMB. PARRILA URVAN 14-15 E073","EMBLEMA",496]
["28VWEM","EMB. GOLF TRASERO SUBMARCA A3 (MK)7cms","EMBLEMA",156]
["29CHEM","EMB. TRASERO CORSA (1457)","EMBLEMA",138]
["29NEM","EMB. TRASERO NS TIIDA 07-15 SEDAN 4 PTAS (MK)","EMBLEMA",114]
["29VWEM","EMB. POINTER TRASERO 2000-2005","EMBLEMA",222]
["30CHEM","CRUZ EMB. CHEVY C-3 Y CORSA 19CM P/P","EMBLEMA",442]
["30NEM","EMB. TRASERO NS VERSA  12-15(MK)","EMBLEMA",114]
["30VWEM","EMB.  BEETLE","EMBLEMA",292]
["31CHEM","EMB. LETRAS TORNADO","EMBLEMA",224]
["31NEM","EMB. LETRERO SENTRA 2005-2012","EMBLEMA",206]
["31VWEM","EMB. POINTER TRASERO MOD 2006-07","EMBLEMA",236]
["32CHEM","EMB. PARRILLA CHEV CRUZE 10-16 E089","EMBLEMA",464]
["32NEM","PLACA DECORATIVA \"\"PURE DRIV","EMBLEMA",260]
["32VWEM","EMB. DE PARRILLA JETTA Y GOLF A4 99-07 POLO 03-07 E-003","EMBLEMA",204]
["33CHEM","EMB. LETRAS AVEO SEDAN 08-15 E070","EMBLEMA",150]
["33NEM","EMB. PARRILLA MARCH 12-16  E078","EMBLEMA",310]
["33VWEM","EMB. PARRILLA ATLANTIC (2153)","EMBLEMA",118]
["34CHEM","EMB. PARRILA/FACIA AVEO 12-16 SONIC 12-14","EMBLEMA",444]
["34NEM","EMB. PARRILLA SENTRA 12-16  E079","EMBLEMA",314]
["34VWEM","LETRAS DE CARIBE","EMBLEMA",118]
["35CHEM","EMB. AVEO TRASERO 12-17","EMBLEMA",392]
["35NEM","EMB. PARRILLA VERSA 15-16  E087","EMBLEMA",358]
["35VWEM","EMB. LOGOTIPO SEAT","EMBLEMA",216]
["36CHEM","EMB. PARRILLA TORNADO C/ADHESIVO 11-16","EMBLEMA",266]
["36NEM","EMB. PARRILLA NP300 NISSAN  E088","EMBLEMA",472]
["36VWEM","LETRAS VW 1\"\" X 7 3/4 (215","EMBLEMA",152]
["37CHEM","EMBL PARR CV SILVERADO/CHEY/SUB/CUSTOM 96-98 CROM","EMBLEMA",576]
["37NEM","EMB. LETRERO NP-300 E 094","EMBLEMA",298]
["37VWEM","LETRAS VW CALADA (2156)","EMBLEMA",160]
["38CHEM","EMBL PARR CV SILVERADO/CHEY/SUB/CUSTOM 96-99","EMBLEMA",504]
["38NEM","EMB. LETRERO \"\"FRONTIER\"\" 10-17","EMBLEMA",362]
["38VWEM","LETRAS DE BEETLE SPORT (2111)","EMBLEMA",158]
["39CHEM","EMB. CAJUELA CHEYENNE 07-13  E081","EMBLEMA",678]
["39NEM","DECORATIVO INSIGNIA NISMO PARRILLA NEGRO-E120","EMBLEMA",270]
["39VWEM","LETRAS JETTA A-3 (2085)","EMBLEMA",134]
["40CHEM","EMB. PARRILLA CHEYENNE 14-16 FILO NEGRO  E082","EMBLEMA",642]
["40NEM","DECORATIVO INSIGNIA NISMO PARRILLA ROJO-E120C","EMBLEMA",270]
["40VWEM","LETRAS ATLANTIC G.L. (2152)","EMBLEMA",144]
["41CHEM","EMB. PARRILLA CHEYENNE 14-16 FILO CROM  E082C","EMBLEMA",716]
["41NEM","EMB. PLACA NISMO NEGRO-E121","EMBLEMA",210]
["41VWEM","LETRAS ATLANTIC C-2 (2154)","EMBLEMA",144]
["42CHEM","EMB. CAJUELA CHEYENNE 14-16  E083","EMBLEMA",784]
["42NEM","EMB. PLACA NISMO  ROJO -E121C","EMBLEMA",210]
["42VWEM","LETRAS DERBY (2144)","EMBLEMA",152]
["43CHEM","EMB. PARRILLA SPARK  E085","EMBLEMA",464]
["43NEM","LETRERO NISMO-E 122","EMBLEMA",210]
["43VWEM","LETRAS LEON E-048","EMBLEMA",138]
["44CHEM","EMB. PARRILLA TORNADO C/GRAPAS 11-16  E086","EMBLEMA",430]
["44NEM","LETRERO NISMO NEGRO-E122N","EMBLEMA",210]
["44VWEM","LETRAS SEAT E-024","EMBLEMA",138]
["45CHEM","EMB. PARRILLA S-10  16 (E-090) 26x8.5 cms","EMBLEMA",644]
["45NEM","EMB. LETRERO NISSAN KICKS 16-20(MK)","EMBLEMA",208]
["45VWEM","LETRAS IBIZA E-043","EMBLEMA",138]
["46CHEM","EMB. PARRILLA CHEV S-10/SONOMA 85-95","EMBLEMA",190]
["46NEM","EMB. PARRILLA NISSAN KICKS 16-20 E-073","EMBLEMA",496]
["46VWEM","LETRAS SEAT IBIZA 2189 GRANDES 01-05","EMBLEMA",254]
["47CHEM","EMB. PARRILLA CHEV BLAZER 95-00","EMBLEMA",190]
["47VWEM","LETRAS TURBO BEETLE","EMBLEMA",130]
["47NEM","EMB. LETRERO NISSAN URVAN NV350","EMBLEMA",216]
["48CHEM","EMB. PARRILLA CHEYENNE-SUBURB-SIERRA  81-91","EMBLEMA",214]
["48VWEM","EMB. GOL PARRILLA","EMBLEMA",288]
["48NEM","EMB. PARRILLA NISSAN NP300 2023 E143                          ","EMBLEMA",566]
["49NEM","EMB. PARRILLA NISSAN MARCH 2023 E144                        ","EMBLEMA",566]
["49CHEM","EMB. PARR. CHEYENNE-CUSTOM-SIERRA-SUBURB 92-99","EMBLEMA",190]
["49VWEM","EMB. PARRILLA JETTA CLASICO A5","EMBLEMA",382]
["50NEM","EMB. PARRILLA VERSA 15-19 GRIS/BCO","EMBLEMA",242]
["50CHEM","LETRERO P/PARR CHEV S-10/SONOMA 80-95","EMBLEMA",436]
["50VWEM","EMB. LATERAL LETRERO  (CLASICO) JGO","EMBLEMA",164]
["51CHEM","EMB PARRILLA CRUZE E-111 10-14","EMBLEMA",528]
["51VWEM","EMB. LETRERO \"\"GOL\"\"","EMBLEMA",144]
["52CHEM","EMB COFRE MATIZ E112 06-15","EMBLEMA",360]
["52VWEM","EMB. LETRERO \"\"GOLF\"\" A-5","EMBLEMA",144]
["53CHEM","EMB. PARRILLA AVEO E113 08-12","EMBLEMA",444]
["53VWEM","EMB. LETRERO \"\"JETTA\"\" A-5","EMBLEMA",144]
["54CHEM","EMB. PARRILLA CHEV TRAX 17-21","EMBLEMA",500]
["54VWEM","EMB. LETRERO \"\"GTI\"\" A-5","EMBLEMA",138]
["55CHEM","EMB. TRASERO CHEV TORNADO 15-20","EMBLEMA",354]
["55CHEM","EMB TRASERO CHEV TORNADO 15-20","EMBLEMA",354]
["55VWEM","EMB. LETRERO \"\"CLASICO\"\" TRASERO A-5","EMBLEMA",158]
["56CHEM","EMB. TRASERO CHEV.SONIC 15-19","EMBLEMA",354]
["56VWEM","EMB. VW JETTA 11-15 BICENTENARIO","EMBLEMA",384]
["57VWEM","EMB. PARRILLA VENTO 14-15 E076","EMBLEMA",316]
["57CHEM","EMB. PARRILLA AVEO 18-20 E124","EMBLEMA",480]
["58CHEM","EMB PARRILLA BEAT 18-20 E-125","EMBLEMA",454]
["58VWEM","EMB. PARRILLA SEATIBIZA,LEON,CORDOBA 09-15 E072","EMBLEMA",274]
["59VWEM","EMB. PARRILLA GOL 15-16  E080","EMBLEMA",214]
["59CHEM","EMB. DE PARRILLA GMC SIERRA YUKON DENALI MOD 2007-2019 CROMO","EMBLEMA",1862]
["60CHEM","EMB. DE PARRILLA GMC SIERRA YUKON DENALI MOD 2007-2020 NEGRO","EMBLEMA",1862]
["60VWEM","EMB. PARRILLA JETTA 15-16  E084","EMBLEMA",392]
["61CHEM","LETRERO SUBURBAN 06-21","EMBLEMA",344]
["61VWEM","EMB. PARRILLA VENTO 16 -19 E091","EMBLEMA",362]
["62VWEM","LET. P/PARRILLA GTI  E108 ( JETTA-GOL-BORA-GOLF-POLO)","EMBLEMA",298]
["62CHEM","EMB. PARRILLA CHEVROLET TRAX 13-16 E139","EMBLEMA",468]
["63VWEM","LET. P/PARRILLA GTI ROJO E108C ( JETTA-GOL-BORA-GOLF-POLO)","EMBLEMA",298]
["63EMCH","EMB. PARRILLA CHEV SILVERADO HD 2500-3500 99-05","EMBLEMA",656]
["64EMCH","EMB. PARRILLA CHEV SILVERADO HD 2500-3500 99-05","EMBLEMA",738]
["65EMCH","EMB. PARRILLA CHEV SILVERADO HD 2500-3500 09-14","EMBLEMA",609]
["66EMCH","EMBLEMA PARRILLA TORNADO VAN 22-24 CROMO/ORO","EMBLEMA",567]
["67EMCH","EMBLEMA PARRILLA TORNADO VAN 22-24 CROMO/NEG","EMBLEMA",567]
["68EMCH","EMBLEMA CAJUELA TORNADO VAN 22-24 CROMO/ORO","EMBLEMA",510]
["69EMCH","EMBLEMA CAJUELA TORNADO VAN 22-24 CROMO/NEG","EMBLEMA",510]
["64VWEM","LET. P/PARRILLA GLI E109 ( JETTA-GOL-BORA-GOLF-POLO)","EMBLEMA",298]
["65VWEM","LET. P/PARRILLA GLI E109C ROJO ( JETTA-GOL-BORA-GOLF-POLO)","EMBLEMA",298]
["66VWEM","LETRERO VW SAVEIRO E104  10-14","EMBLEMA",164]
["67VWEM","LETRERO VW VENTO E105 14-18","EMBLEMA",138]
["68VWEM","ESPADILLAS DECORATIVA SALPICADERA MOD VW GTI ROJO JGO-E114","EMBLEMA",394]
["69VWEM","ESPADILLAS DECORATIVA SALPICADERA MOD VW GTI NEGRO JGO-E114N","EMBLEMA",394]
["70VWEM","ESPADILLA DECORATIVIA SALPICERDERA  MOD GLI ROJO JGO E-115","EMBLEMA",394]
["71VWEM","ESPADILLAS DECORATIVA SALPICADERA MOD VW GLI NEGRO JGO-E115N","EMBLEMA",394]
["72VWEM"," ESPADILLAS DECORATIVA  SALPICADERA MOD. VW R-LINE ROJO JGO--E118","EMBLEMA",394]
["73VWEM","ESPADILLAS DECORATIVA  SALPICADERA MOD. VW R-LINE ALEMANIA JGO--E118A","EMBLEMA",394]
["74VWEM","ESPADILLAS DECORATIVA SALPICADERA MOD VW R-LINE NEGRO JGO -E118N","EMBLEMA",394]
["75VWEM","DECORATIVO MULTIMARCA R-LINE ROJO E-119","EMBLEMA",122]
["76VWEM","DECORATIVO MULTICARMA R-LINE ALEMANIA-E119A","EMBLEMA",122]
["77VWEM","DECORATIVO MULTIMARCA R-LINE NEGRO-E119N","EMBLEMA",122]
["78VWEM","EMB. PARA FIJAR EN PARRILLAMULTIMARCA R-LINE ROJO E123","EMBLEMA",270]
["79VWEM","EMB. PARA FIJAR EN PARRILLAMULTIMARCA R-LINE ALEMANIA-E123A","EMBLEMA",270]
["80VWEM","EMB. PARA FIJAR EN PARRILLAMULTIMARCA R-LINE NEGRO-E123N","EMBLEMA",270]
["81VWEM","EMB. PARRILLA GOLF 99-07 E-117","EMBLEMA",236]
["82VWEM","EMB. PARRILLA JETTA 2023 E-140                                          ","EMBLEMA",610]
["83VWEM","EMB. LETRERO GTI A5 ROJO","EMBLEMA",154]
["84VWEM","EMB. PARRILLA VW CADDY 16-20","EMBLEMA",522]
["85VWEM","JGO CENTRO RIN POINTER,DERBY,VENTO,JETTA, A3,A4,GOLF","EMBLEMA",578]
["86VWEM","JGO CENTRO RIN BORA,TUAREG, BEETLE,AMAROK,PASAT,TIGUAN,BICENT.","EMBLEMA",578]
["1S","SOQUET DE FORD LARGO","SOQUET",{"$f":"EVEN('[1]ARCHIVO PARA ACT SISTEMA MAY 24'!F1320*1.05)","v":66}]
["2S","SOQUET DE JETTA P.V.CALAVERA","SOQUET",{"$f":"EVEN('[1]ARCHIVO PARA ACT SISTEMA MAY 24'!F1321*1.05)","v":66}]
["3S","SOQUET DE CARIBE","SOQUET",{"$f":"EVEN('[1]ARCHIVO PARA ACT SISTEMA MAY 24'!F1322*1.05)","v":66}]
["4S","SOQUET DE MERCEDES BENZ","SOQUET",{"$f":"EVEN('[1]ARCHIVO PARA ACT SISTEMA MAY 24'!F1323*1.05)","v":24}]
["5S","SOQUET DE CHEVROLET Y DINA","SOQUET",{"$f":"EVEN('[1]ARCHIVO PARA ACT SISTEMA MAY 24'!F1324*1.05)","v":82}]
["6S","SOQUET UNIVERSAL DE U¥AS","SOQUET",{"$f":"EVEN('[1]ARCHIVO PARA ACT SISTEMA MAY 24'!F1325*1.05)","v":30}]
["7S","SOQUET DE FORD CORTO","SOQUET",{"$f":"EVEN('[1]ARCHIVO PARA ACT SISTEMA MAY 24'!F1326*1.05)","v":46}]
["8S","SOQUET DE JETTA ABS","SOQUET",{"$f":"EVEN('[1]ARCHIVO PARA ACT SISTEMA MAY 24'!F1327*1.05)","v":46}]
["9S","SOQUET DE POINTER","SOQUET",{"$f":"EVEN('[1]ARCHIVO PARA ACT SISTEMA MAY 24'!F1328*1.05)","v":26}]
["10S","SOQUET DE NISSAN","SOQUET",{"$f":"EVEN('[1]ARCHIVO PARA ACT SISTEMA MAY 24'!F1329*1.05)","v":26}]
["11S","SOQUET DE DODGE DART","SOQUET",{"$f":"EVEN('[1]ARCHIVO PARA ACT SISTEMA MAY 24'!F1330*1.05)","v":20}]
["12S","SOQUET PATA \"","SOQUET",{"$f":"EVEN('[1]ARCHIVO PARA ACT SISTEMA MAY 24'!F1331*1.05)","v":22}]
["13S","CONECTOR  ENC DE CHRYSLER","SOQUET",{"$f":"EVEN('[1]ARCHIVO PARA ACT SISTEMA MAY 24'!F1332*1.05)","v":32}]
["14S","SOQUET DE PELLIZCO DE VELITA","SOQUET",{"$f":"EVEN('[1]ARCHIVO PARA ACT SISTEMA MAY 24'!F1333*1.05)","v":24}]
["15S","ENCHUFE DE UNIDAD DE CAJITA","SOQUET",{"$f":"EVEN('[1]ARCHIVO PARA ACT SISTEMA MAY 24'!F1334*1.05)","v":46}]
["16S","ENCHUFE DE UNIDAD DE MEDIA LUNA","SOQUET",{"$f":"EVEN('[1]ARCHIVO PARA ACT SISTEMA MAY 24'!F1335*1.05)","v":18}]
["17S","SOQUET PATA \"","SOQUET",{"$f":"EVEN('[1]ARCHIVO PARA ACT SISTEMA MAY 24'!F1336*1.05)","v":18}]
["18S","SOQUET MINI \"","SOQUET",{"$f":"EVEN('[1]ARCHIVO PARA ACT SISTEMA MAY 24'!F1337*1.05)","v":18}]
["19S","SOQUET LAT P-FOCO DE PELLIZCO ROSCA","SOQUET",{"$f":"EVEN('[1]ARCHIVO PARA ACT SISTEMA MAY 24'!F1338*1.05)","v":18}]
["20S","SOQUET DE PELLIZCO","SOQUET",{"$f":"EVEN('[1]ARCHIVO PARA ACT SISTEMA MAY 24'!F1339*1.05)","v":78}]
["21S","PORTAFUSIBLES DE CLAVIJA REFORZADO","SOQUET",{"$f":"EVEN('[1]ARCHIVO PARA ACT SISTEMA MAY 24'!F1340*1.05)","v":66}]
["22S","PORTAFUSIBLE DE CLAVIJA SENCILLO","SOQUET",{"$f":"EVEN('[1]ARCHIVO PARA ACT SISTEMA MAY 24'!F1341*1.05)","v":66}]
["23S","CONECTOR ACOPLADO 2 VIAS","SOQUET",{"$f":"EVEN('[1]ARCHIVO PARA ACT SISTEMA MAY 24'!F1342*1.05)","v":66}]
["24S","COLILLA MINI","SOQUET",{"$f":"EVEN('[1]ARCHIVO PARA ACT SISTEMA MAY 24'!F1343*1.05)","v":20}]
["25S","COLILLA DE UN POLO 12 CM","SOQUET",{"$f":"EVEN('[1]ARCHIVO PARA ACT SISTEMA MAY 24'!F1344*1.05)","v":88}]
["26S","COLILLA DE DOS POLOS 16CM","SOQUET",{"$f":"EVEN('[1]ARCHIVO PARA ACT SISTEMA MAY 24'!F1345*1.05)","v":174}]
["27S","COLILLA DE DOS POLOS 12 CM","SOQUET",{"$f":"EVEN('[1]ARCHIVO PARA ACT SISTEMA MAY 24'!F1346*1.05)","v":118}]
["28S","SOQUET P-FOCO 9004","SOQUET",{"$f":"EVEN('[1]ARCHIVO PARA ACT SISTEMA MAY 24'!F1347*1.05)","v":66}]
["29S","SOQUET DE U¥A UNIVERSAL GRANDE","SOQUET",{"$f":"EVEN('[1]ARCHIVO PARA ACT SISTEMA MAY 24'!F1348*1.05)","v":46}]
["30S","SOQUET DE U¥A UNIVERSAL CHICO","SOQUET",{"$f":"EVEN('[1]ARCHIVO PARA ACT SISTEMA MAY 24'!F1349*1.05)","v":46}]
["31S","SOQUET P-RELEVADOR DE 5 ENTRADAS","SOQUET",{"$f":"EVEN('[1]ARCHIVO PARA ACT SISTEMA MAY 24'!F1350*1.05)","v":514}]
["32S","SOQUET P-FOCO DE PELLIZCO SENCILLO","SOQUET",{"$f":"EVEN('[1]ARCHIVO PARA ACT SISTEMA MAY 24'!F1351*1.05)","v":202}]
["33S","SOQUET PARA PLAFON SELLADO 3 TERMINALES","SOQUET",{"$f":"EVEN('[1]ARCHIVO PARA ACT SISTEMA MAY 24'!F1352*1.05)","v":18}]
["34S","CONECTOR CALAVERA  VOYAGER 97-98 CLAVE 121C","SOQUET",{"$f":"EVEN('[1]ARCHIVO PARA ACT SISTEMA MAY 24'!F1353*1.05)","v":80}]
["35S","SOQUET PARA FOCO # 3157","SOQUET",{"$f":"EVEN('[1]ARCHIVO PARA ACT SISTEMA MAY 24'!F1354*1.05)","v":82}]
["36S","ENCHUFE DE UNIDAD DE MEDIA LUNA ENCAP.","SOQUET",{"$f":"EVEN('[1]ARCHIVO PARA ACT SISTEMA MAY 24'!F1355*1.05)","v":250}]
["37S","SOQUET PARA CALAVERA  DE TSURU","SOQUET",{"$f":"EVEN('[1]ARCHIVO PARA ACT SISTEMA MAY 24'!F1356*1.05)","v":92}]
["38S","PORTA FUSIBLE DE CLAVIJA CON TAPA","SOQUET",{"$f":"EVEN('[1]ARCHIVO PARA ACT SISTEMA MAY 24'!F1357*1.05)","v":92}]
["39S","ARNES DE CALAVERA  CHEV PU. 92-98 25CH","SOQUET",{"$f":"EVEN('[1]ARCHIVO PARA ACT SISTEMA MAY 24'!F1358*1.05)","v":130}]
["40S","ARNES CALAVERA  TSURU III","SOQUET",{"$f":"EVEN('[1]ARCHIVO PARA ACT SISTEMA MAY 24'!F1359*1.05)","v":102}]
["41S","COLILLA DE UN POLO 16 CM","SOQUET",{"$f":"EVEN('[1]ARCHIVO PARA ACT SISTEMA MAY 24'!F1360*1.05)","v":88}]
["42S","ENCHUFE DE FOCO 9005-9006","SOQUET",{"$f":"EVEN('[1]ARCHIVO PARA ACT SISTEMA MAY 24'!F1361*1.05)","v":116}]
["43S","CONECTOR PARA INYECTOR","SOQUET",{"$f":"EVEN('[1]ARCHIVO PARA ACT SISTEMA MAY 24'!F1362*1.05)","v":98}]
["44S","CONECTOR PARA SWITCH LUZ SEDAN Y COMBI TECLA","SOQUET",{"$f":"EVEN('[1]ARCHIVO PARA ACT SISTEMA MAY 24'!F1363*1.05)","v":262}]
["45S","SOQUET PARA UNIDAD FOCO H-7","SOQUET",{"$f":"EVEN('[1]ARCHIVO PARA ACT SISTEMA MAY 24'!F1364*1.05)","v":262}]
["46S","CONECTOR PARA REMOLQUE 4 VIAS","SOQUET",{"$f":"EVEN('[1]ARCHIVO PARA ACT SISTEMA MAY 24'!F1365*1.05)","v":262}]
["47S","CONECTOR PARA REMOLQUE 6 VIAS","SOQUET",{"$f":"EVEN('[1]ARCHIVO PARA ACT SISTEMA MAY 24'!F1366*1.05)","v":262}]
["48S","SOCKET PARA FOCO H13","SOQUET",{"$f":"EVEN('[1]ARCHIVO PARA ACT SISTEMA MAY 24'!F1367*1.05)","v":262}]
["49S","SOCKET PARA FOCO H11 880 Y 881","SOQUET",{"$f":"EVEN('[1]ARCHIVO PARA ACT SISTEMA MAY 24'!F1368*1.05)","v":262}]
["50S","PORTA FUSIBLE UNIVERSAL P-1 FUSIBLE VIDRIO1-351AA","SOQUET",{"$f":"EVEN('[1]ARCHIVO PARA ACT SISTEMA MAY 24'!F1369*1.05)","v":262}]
["51S","CONECTOR DE FOCO DE PELLIZCO ENCAPSULADO PARA 1/4 LATERALES VW JETTA/GOLF","SOQUET",{"$f":"EVEN('[1]ARCHIVO PARA ACT SISTEMA MAY 24'!F1370*1.05)","v":262}]
["1MP","MARCO P/PLACA T/EUROPEO UNIVERSAL","MARCO DE PLACA",200]
["2MP","MARCO P/PLACA T/EUROPEO JETTA WOLFSBURG","MARCO DE PLACA",200]
["3MP","MARCO P/PLACA T/EUROPEO VW BECAUSE LOGO VW","MARCO DE PLACA",200]
["4MP","MARCO P/PLACA T/EUROPEO VW R RACING EVERYTHING MANITA","MARCO DE PLACA",200]
["5MP","MARCO P/PLACA T/EUROPEO VW  R RACING EURO PRO-LOGO VW ","MARCO DE PLACA",200]
["6MP","MARCO P/PLACA T/EUROPEO VW R RACING RABBIT-MOTOR SPORT","MARCO DE PLACA",200]
["7MP","MARCO P/PLACA T/EUROPEO GTI MOST WANTED EXTREME ADDICTION-MANITA","MARCO DE PLACA",200]
["8MP","MARCO P/PLACA T/EUROPEO GTI\"\"MOST WANTED VW SEXI-AGUI","MARCO DE PLACA",200]
["9MP","MARCO P/PLACA T/EUROPEO JETTA VW BAND ALEM","MARCO DE PLACA",200]
["10MP","MARCO P/PLACA T/EUROPEO VW B E C A U S E - LOGO ALEM","MARCO DE PLACA",200]
["11MP","MARCO P/PLACA T/EUROPEO VW B E C A U S E - LOGO VW","MARCO DE PLACA",200]
["12MP","MARCO P/PLACA T/EUROPEO VW R RACING BAND EUR-DEUTSCHLAND","MARCO DE PLACA",200]